Workbook

Sheet Overall
A2: Stage overview Czech Tour 2023
A4: Stage | B4: Date | C4: Start-place | D4: Length (km) | E4: Elevation (m) | F4: Start-time | G4: Finish-place | H4: Finish-time
A5: 1. | B5: 2023-07-27 | C5: Prostějov | D5: 167.8 | E5: 2217 | F5: 12:30:00 | G5: Uničov | H5: 16:29 - 16:41
A6: 2. | B6: 2023-07-28 | C6: Olomouc | D6: 166.8 | E6: 2840 | F6: 11:30:00 | G6: Pustevny | H6: 15:43 - 16:08
A7: 3. | B7: 2023-07-29 | C7: Moravská Třebová | D7: 161.5 | E7: 3404 | F7: 12:00:00 | G7: ČHS | H7: 15:55 - 16:07
A8: 4. | B8: 2023-07-30 | C8: Šumperk | D8: 178.7 | E8: 2982 | F8: 11:00:00 | G8: Šternberk | H8: 15:33 - 15:47
C9: km/m in total | D9: =SUM(D5:D8) -> 674.8 | E9: =SUM(E5:E8) -> 11443

Sheet 01-Prostějov - Uničov
A1: Stage timetable:
A3: 1st stage Prostějov - Uničov, 27. 7. 2023
A5: Stage start time
A6: Start | C6: 12:30:00
A7: KM0 hh:mm | C7: 12:30:00
A9: average speed (km/h)
A10: a | C10: 42
A11: b | C11: 40
B13: remark | C13: place | D13: kilometer | E13: distance to finish | F13: timetable | G13: absolute time A | H13: absolute time B | I13: relative time A | J13: relative time B
C14: ITINERARY | D14: (km) | E14: (km) | F14: (hh:mm - hh:mm) | G14: (hh:mm) | H14: (hh:mm) | I14: (hh:mm) | J14: (hh:mm)
A15: START | C15: sq. T.G.Masaryka | D15: 0 | E15: =$D$183-D15 -> 167.7 | F15: =TEXT(G15,"h:mm")&" - "&TEXT(H15,"h:mm") -> 12:30 - 12:30 | G15: =$C$7+I15 -> 12:30:00 | H15: =$C$7+J15 -> 12:30:00 | I15: =TEXT(D15/$C$10/24,"h:mm") -> 0:00 | J15: =TEXT(D15/$C$11/24,"h:mm") -> 0:00
B16: left | C16: st. Kravařova | D16: 0.2 | E16: 167.5 | F16: 12:30 - 12:30 | G16: 12:30:00 | H16: 12:30:00 | I16: =TEXT(D16/$C$10/24,"h:mm") -> 0:00 | J16: =TEXT(D16/$C$11/24,"h:mm") -> 0:00
B17: straight | C17: st. Plumlovská | D17: 0.4 | E17: 167.3 | F17: 12:30 - 12:30 | G17: 12:30:00 | H17: 12:30:00 | I17: =TEXT(D17/$C$10/24,"h:mm") -> 0:00 | J17: =TEXT(D17/$C$11/24,"h:mm") -> 0:00
B18: 3rd exit straight | C18: roundabout | D18: 1.5 | E18: 166.2 | F18: 12:32 - 12:32 | G18: 12:32:00 | H18: 12:32:00 | I18: =TEXT(D18/$C$10/24,"h:mm") -> 0:02 | J18: =TEXT(D18/$C$11/24,"h:mm") -> 0:02
B19: KM0 | D19: 0 | E19: 167.7 | F19: =TEXT(G19,"h:mm")&" - "&TEXT(H19,"h:mm") -> 12:30 - 12:30 | G19: =$C$7+I19 -> 12:30:00 | H19: =$C$7+J19 -> 12:30:00 | I19: =TEXT(D19/$C$10/24,"h:mm") -> 0:00 | J19: =TEXT(D19/$C$11/24,"h:mm") -> 0:00
B20: 2nd exit straight | C20: roundabout | D20: 0.6 | E20: 167.1 | F20: 12:30 - 12:30 | G20: 12:30:00 | H20: 12:30:00 | I20: =TEXT(D20/$C$10/24,"h:mm") -> 0:00 | J20: =TEXT(D20/$C$11/24,"h:mm") -> 0:00
B21: 2nd exit straight | C21: roundabout | D21: 1.4 | E21: 166.3 | F21: 12:32 - 12:32 | G21: 12:32:00 | H21: 12:32:00 | I21: 0:02 | J21: 0:02
B22: left | C22: route 377 crossroad | D22: 1.5 | E22: 166.2 | F22: 12:32 - 12:32 | G22: 12:32:00 | H22: 12:32:00 | I22: 0:02 | J22: 0:02
C23: MOSTKOVICE | D23: 2.1 | E23: 165.6 | F23: 12:33 - 12:33 | G23: 12:33:00 | H23: 12:33:00 | I23: 0:03 | J23: 0:03
B24: straight | C24: crossroad | D24: 2.7 | E24: 165 | F24: 12:33 - 12:34 | G24: 12:33:00 | H24: 12:34:00 | I24: 0:03 | J24: 0:04
B25: straight | C25: STICHOVICE crossroad | D25: 3.5 | E25: 164.2 | F25: 12:35 - 12:35 | G25: 12:35:00 | H25: 12:35:00 | I25: 0:05 | J25: 0:05
C26: PLUMLOV | D26: 5.9 | E26: 161.8 | F26: 12:38 - 12:38 | G26: 12:38:00 | H26: 12:38:00 | I26: 0:08 | J26: 0:08
B27: straight | C27: crossroad | D27: 6.3 | E27: 161.4 | F27: 12:39 - 12:39 | G27: 12:39:00 | H27: 12:39:00 | I27: 0:09 | J27: 0:09
B28: straight | C28: route 37349 crossroad | D28: 6.6 | E28: 161.1 | F28: 12:39 - 12:39 | G28: 12:39:00 | H28: 12:39:00 | I28: 0:09 | J28: 0:09
B29: straight | C29: crossroad | D29: 7.6 | E29: 160.1 | F29: 12:40 - 12:41 | G29: 12:40:00 | H29: 12:41:00 | I29: 0:10 | J29: 0:11
B30: straight | C30: crossroad | D30: 10.4 | E30: 157.3 | F30: 12:44 - 12:45 | G30: 12:44:00 | H30: 12:45:00 | I30: 0:14 | J30: 0:15
C31: VÍCOV | D31: 10.9 | E31: 156.8 | F31: 12:45 - 12:46 | G31: 12:45:00 | H31: 12:46:00 | I31: 0:15 | J31: 0:16
B32: straight | C32: route 150 crossroad | D32: 11 | E32: 156.7 | F32: 12:45 - 12:46 | G32: 12:45:00 | H32: 12:46:00 | I32: 0:15 | J32: 0:16
B33: straight | C33: crossroad | D33: 13.1 | E33: 154.6 | F33: 12:48 - 12:49 | G33: 12:48:00 | H33: 12:49:00 | I33: 0:18 | J33: 0:19
C34: STÍNAVA | D34: 13.6 | E34: 154.1 | F34: 12:49 - 12:50 | G34: 12:49:00 | H34: 12:50:00 | I34: 0:19 | J34: 0:20
B35: straight | C35: crossroad | D35: 16 | E35: 151.7 | F35: 12:52 - 12:54 | G35: 12:52:00 | H35: 12:54:00 | I35: 0:22 | J35: 0:24
C36: MALÉ HRADISKO | D36: 18.7 | E36: 149 | F36: 12:56 - 12:58 | G36: 12:56:00 | H36: 12:58:00 | I36: 0:26 | J36: 0:28
B37: left | C37: crossroad | D37: 18.8 | E37: 148.9 | F37: 12:56 - 12:58 | G37: 12:56:00 | H37: 12:58:00 | I37: 0:26 | J37: 0:28
A38: GPM 2nd cat. | B38: 683 m.n.m. | C38: Protivanov | D38: 21.9 | E38: 145.8 | F38: =TEXT(G38,"h:mm")&" - "&TEXT(H38,"h:mm") -> 13:01 - 13:02 | G38: =$C$7+I38 -> 13:01:00 | H38: =$C$7+J38 -> 13:02:00 | I38: =TEXT(D38/$C$10/24,"h:mm") -> 0:31 | J38: =TEXT(D38/$C$11/24,"h:mm") -> 0:32
B39: straight | C39: crossroad | D39: 21.9 | E39: 145.8 | F39: 13:01 - 13:02 | G39: 13:01:00 | H39: 13:02:00 | I39: 0:31 | J39: 0:32
C40: PROTIVANOV | D40: 22.1 | E40: 145.6 | F40: 13:01 - 13:03 | G40: 13:01:00 | H40: 13:03:00 | I40: 0:31 | J40: 0:33
B41: left | C41: st. Boskovická | D41: 22.4 | E41: 145.3 | F41: 13:02 - 13:03 | G41: 13:02:00 | H41: 13:03:00 | I41: 0:32 | J41: 0:33
B42: left | C42: route 37727 crossroad | D42: 22.7 | E42: 145 | F42: 13:02 - 13:04 | G42: 13:02:00 | H42: 13:04:00 | I42: 0:32 | J42: 0:34
C43: NIVA | D43: 26.5 | E43: 141.2 | F43: 13:07 - 13:09 | G43: 13:07:00 | H43: 13:09:00 | I43: 0:37 | J43: 0:39
B44: right | C44: route 37726 crossroad | D44: 27.1 | E44: 140.6 | F44: 13:08 - 13:10 | G44: 13:08:00 | H44: 13:10:00 | I44: 0:38 | J44: 0:40
B45: right | C45: route 377 crossroad | D45: 27.5 | E45: 140.2 | F45: 13:09 - 13:11 | G45: 13:09:00 | H45: 13:11:00 | I45: 0:39 | J45: 0:41
A46: 30 Km patník | D46: 30 | E46: 137.7 | F46: 13:12 - 13:15 | G46: 13:12:00 | H46: 13:15:00 | I46: 0:42 | J46: 0:45
C47: VYSOČANY | D47: 31 | E47: 136.7 | F47: 13:14 - 13:16 | G47: 13:14:00 | H47: 13:16:00 | I47: 0:44 | J47: 0:46
B48: straight | C48: ŠOŠŮVKA | D48: 36.1 | E48: =$D$183-D48 -> 131.6 | F48: 13:21 - 13:24 | G48: 13:21:00 | H48: 13:24:00 | I48: 0:51 | J48: 0:54
B49: left | C49: route 377 crossroad | D49: 36.5 | E49: 131.2 | F49: 13:22 - 13:24 | G49: 13:22:00 | H49: 13:24:00 | I49: 0:52 | J49: 0:54
B50: right | C50: route 373 crossroad | D50: 37.5 | E50: 130.2 | F50: 13:23 - 13:26 | G50: 13:23:00 | H50: 13:26:00 | I50: 0:53 | J50: 0:56
B51: straight | C51: crossroad | D51: 38 | E51: 129.7 | F51: 13:24 - 13:27 | G51: 13:24:00 | H51: 13:27:00 | I51: 0:54 | J51: 0:57
C52: SLOUP | D52: 38.6 | E52: 129.1 | F52: 13:25 - 13:27 | G52: 13:25:00 | H52: 13:27:00 | I52: 0:55 | J52: 0:57
B53: right | C53: crossroad | D53: 39.2 | E53: 128.5 | F53: 13:26 - 13:28 | G53: 13:26:00 | H53: 13:28:00 | I53: =TEXT(D53/$C$10/24,"h:mm") -> 0:56 | J53: =TEXT(D53/$C$11/24,"h:mm") -> 0:58
B54: straight | C54: crossroad | D54: 39.8 | E54: 127.9 | F54: 13:26 - 13:29 | G54: 13:26:00 | H54: 13:29:00 | I54: 0:56 | J54: 0:59
B55: straight | C55: crossroad | D55: 40 | E55: 127.7 | F55: 13:27 - 13:30 | G55: 13:27:00 | H55: 13:30:00 | I55: 0:57 | J55: 1:00
A56: GREEN ZONE START | D56: 40.4 | E56: 127.3 | F56: 13:27 - 13:30 | G56: 13:27:00 | H56: 13:30:00 | I56: 0:57 | J56: 1:00
A57: END | D57: 40.6 | E57: 127.1 | F57: 13:28 - 13:30 | G57: 13:28:00 | H57: 13:30:00 | I57: 0:58 | J57: 1:00
C58: NĚMČICE | D58: 43.9 | E58: 123.8 | F58: 13:32 - 13:35 | G58: 13:32:00 | H58: 13:35:00 | I58: 1:02 | J58: 1:05
B59: right | C59: crossroad | D59: 44 | E59: 123.7 | F59: 13:32 - 13:36 | G59: 13:32:00 | H59: 13:36:00 | I59: 1:02 | J59: 1:06
C60: LUDVÍKOV | D60: 45.8 | E60: 121.9 | F60: 13:35 - 13:38 | G60: 13:35:00 | H60: 13:38:00 | I60: 1:05 | J60: 1:08
B61: left | C61: crossroad | D61: 45.7 | E61: 122 | F61: 13:35 - 13:38 | G61: 13:35:00 | H61: 13:38:00 | I61: 1:05 | J61: 1:08
B62: straight | C62: route 373 crossroad | D62: 46.1 | E62: 121.6 | F62: 13:35 - 13:39 | G62: 13:35:00 | H62: 13:39:00 | I62: 1:05 | J62: 1:09
B63: left | C63: route 150 crossroad | D63: 46.5 | E63: 121.2 | F63: 13:36 - 13:39 | G63: 13:36:00 | H63: 13:39:00 | I63: 1:06 | J63: 1:09
C64: VALCHOV | D64: 47.7 | E64: 120 | F64: 13:38 - 13:41 | G64: 13:38:00 | H64: 13:41:00 | I64: 1:08 | J64: 1:11
B65: left | C65: crossroad | D65: 48.1 | E65: 119.6 | F65: 13:38 - 13:42 | G65: 13:38:00 | H65: 13:42:00 | I65: 1:08 | J65: 1:12
B66: straight | C66: crossroad | D66: 48.6 | E66: 119.1 | F66: 13:39 - 13:42 | G66: 13:39:00 | H66: 13:42:00 | I66: 1:09 | J66: 1:12
C67: BOSKOVICE | D67: 51.3 | E67: 116.4 | F67: 13:43 - 13:46 | G67: 13:43:00 | H67: 13:46:00 | I67: 1:13 | J67: 1:16
B68: straight | C68: crossroad | D68: 51.4 | E68: 116.3 | F68: 13:43 - 13:47 | G68: 13:43:00 | H68: 13:47:00 | I68: 1:13 | J68: 1:17
B69: right | C69: route 37422 crossroad | D69: 52.7 | E69: 115 | F69: 13:45 - 13:49 | G69: 13:45:00 | H69: 13:49:00 | I69: 1:15 | J69: 1:19
B70: left | C70: crossroad | D70: 52.9 | E70: 114.8 | F70: 13:45 - 13:49 | G70: 13:45:00 | H70: 13:49:00 | I70: 1:15 | J70: 1:19
B71: right | C71: st. Havlíčkova | D71: 53.8 | E71: 113.9 | F71: 13:46 - 13:50 | G71: 13:46:00 | H71: 13:50:00 | I71: 1:16 | J71: 1:20
B72: straight | C72: route 374 crossroad | D72: 56 | E72: 111.7 | F72: 13:50 - 13:54 | G72: 13:50:00 | H72: 13:54:00 | I72: 1:20 | J72: 1:24
C73: VÁŽANY | D73: 58.5 | E73: 109.2 | F73: 13:53 - 13:57 | G73: 13:53:00 | H73: 13:57:00 | I73: 1:23 | J73: 1:27
B74: straight | C74: crossroad | D74: 58.8 | E74: 108.9 | F74: 13:54 - 13:58 | G74: 13:54:00 | H74: 13:58:00 | I74: 1:24 | J74: 1:28
B75: left | C75: KNÍNICE U BOSKOVIC | D75: 59.7 | E75: 108 | F75: 13:55 - 13:59 | G75: 13:55:00 | H75: 13:59:00 | I75: 1:25 | J75: 1:29
B76: straight | C76: ŠEBETOV | D76: 61.6 | E76: 106.1 | F76: 13:58 - 14:02 | G76: 13:58:00 | H76: 14:02:00 | I76: 1:28 | J76: 1:32
B77: right | C77: route 3744 crossroad | D77: 62 | E77: 105.7 | F77: 13:58 - 14:03 | G77: 13:58:00 | H77: 14:03:00 | I77: 1:28 | J77: 1:33
B78: right | D78: 62.4 | E78: 105.3 | F78: 13:59 - 14:03 | G78: 13:59:00 | H78: 14:03:00 | I78: 1:29 | J78: 1:33
B79: left | C79: crossroad | D79: 62.6 | E79: 105.1 | F79: 13:59 - 14:03 | G79: 13:59:00 | H79: 14:03:00 | I79: 1:29 | J79: 1:33
B80: right | C80: crossroad | D80: 63 | E80: 104.7 | F80: 14:00 - 14:04 | G80: 14:00:00 | H80: 14:04:00 | I80: 1:30 | J80: 1:34
B81: left | C81: route 37354 crossroad | D81: 64.4 | E81: 103.3 | F81: 14:02 - 14:06 | G81: 14:02:00 | H81: 14:06:00 | I81: 1:32 | J81: 1:36
A82: GPM 2nd cat. | B82: 553 m.n.m. | C82: Karlov | D82: 65 | E82: =$D$183-D82 -> 102.7 | F82: 14:02 - 14:07 | G82: 14:02:00 | H82: 14:07:00 | I82: 1:32 | J82: 1:37
C83: KARLOV | D83: 65.4 | E83: 102.3 | F83: 14:03 - 14:08 | G83: 14:03:00 | H83: 14:08:00 | I83: 1:33 | J83: 1:38
C84: POHORA | D84: 68.3 | E84: 99.4 | F84: 14:07 - 14:12 | G84: 14:07:00 | H84: 14:12:00 | I84: 1:37 | J84: 1:42
C85: HORNÍ ŠTĚPÁNOV | D85: 71.4 | E85: 96.3 | F85: 14:12 - 14:17 | G85: 14:12:00 | H85: 14:17:00 | I85: 1:42 | J85: 1:47
B86: right | C86: route 37354 crossroad | D86: 71.6 | E86: 96.1 | F86: 14:12 - 14:17 | G86: 14:12:00 | H86: 14:17:00 | I86: 1:42 | J86: 1:47
A87: FEED ZONE | D87: 71.8 | E87: 95.9 | F87: 14:12 - 14:17 | G87: 14:12:00 | H87: 14:17:00 | I87: 1:42 | J87: 1:47
A88: GREEN ZONE START | D88: 73.3 | E88: 94.4 | F88: 14:14 - 14:19 | G88: 14:14:00 | H88: 14:19:00 | I88: 1:44 | J88: 1:49
A89: END | D89: 73.5 | E89: 94.2 | F89: 14:15 - 14:20 | G89: 14:15:00 | H89: 14:20:00 | I89: 1:45 | J89: 1:50
B90: straight | C90: crossroad | D90: 77.9 | E90: 89.8 | F90: 14:21 - 14:26 | G90: 14:21:00 | H90: 14:26:00 | I90: 1:51 | J90: 1:56
B91: straight | C91: crossroad | D91: 79.7 | E91: 88 | F91: 14:23 - 14:29 | G91: 14:23:00 | H91: 14:29:00 | I91: 1:53 | J91: 1:59
C92: POHODLÍ | D92: 83 | E92: 84.7 | F92: 14:28 - 14:34 | G92: 14:28:00 | H92: 14:34:00 | I92: 1:58 | J92: 2:04
C93: HOLUBICE | D93: 85.1 | E93: 82.6 | F93: 14:31 - 14:37 | G93: 14:31:00 | H93: 14:37:00 | I93: =TEXT(D93/$C$10/24,"h:mm") -> 2:01 | J93: =TEXT(D93/$C$11/24,"h:mm") -> 2:07
B94: let | C94: route 37352 crossroad | D94: 85.2 | E94: 82.5 | F94: 14:31 - 14:37 | G94: 14:31:00 | H94: 14:37:00 | I94: 2:01 | J94: 2:07
C95: PTENÍ | D95: 86.1 | E95: 81.6 | F95: 14:33 - 14:39 | G95: 14:33:00 | H95: 14:39:00 | I95: 2:03 | J95: 2:09
B96: right | C96: route 37352 crossroad | D96: 87 | E96: 80.7 | F96: 14:34 - 14:40 | G96: 14:34:00 | H96: 14:40:00 | I96: 2:04 | J96: 2:10
B97: right | C97: crossroad | D97: 87.1 | E97: 80.6 | F97: 14:34 - 14:40 | G97: 14:34:00 | H97: 14:40:00 | I97: 2:04 | J97: 2:10
B98: left | C98: route 37349 crossroad | D98: 87.2 | E98: 80.5 | F98: 14:34 - 14:40 | G98: 14:34:00 | H98: 14:40:00 | I98: 2:04 | J98: 2:10
B99: straight | C99: crossroad | D99: 87.6 | E99: 80.1 | F99: 14:35 - 14:41 | G99: 14:35:00 | H99: 14:41:00 | I99: 2:05 | J99: 2:11
C100: PTENSKÝ DVOREK | D100: 89 | E100: 78.7 | F100: 14:37 - 14:43 | G100: 14:37:00 | H100: 14:43:00 | I100: 2:07 | J100: 2:13
B101: straight | C101: route 37356 crossroad | D101: 89.7 | E101: 78 | F101: 14:38 - 14:44 | G101: 14:38:00 | H101: 14:44:00 | I101: 2:08 | J101: 2:14
C102: SUCHDOL | D102: 93.9 | E102: 73.8 | F102: 14:44 - 14:50 | G102: 14:44:00 | H102: 14:50:00 | I102: 2:14 | J102: 2:20
C103: JEDNOV | D103: 95.8 | E103: 71.9 | F103: 14:46 - 14:53 | G103: 14:46:00 | H103: 14:53:00 | I103: 2:16 | J103: 2:23
B104: right | C104: route 37353 crossroad | D104: 95.9 | E104: 71.8 | F104: 14:47 - 14:53 | G104: 14:47:00 | H104: 14:53:00 | I104: 2:17 | J104: 2:23
B105: right | C105: route 373 crossroad | D105: 97.6 | E105: 70.1 | F105: 14:49 - 14:56 | G105: 14:49:00 | H105: 14:56:00 | I105: 2:19 | J105: 2:26
C106: RUNAŘOV | D106: 99.1 | E106: 68.6 | F106: 14:51 - 14:58 | G106: 14:51:00 | H106: 14:58:00 | I106: 2:21 | J106: 2:28
B107: straight | C107: crossroad | D107: 99.5 | E107: 68.2 | F107: 14:52 - 14:59 | G107: 14:52:00 | H107: 14:59:00 | I107: 2:22 | J107: 2:29
C108: BÍDOV | D108: 100.9 | E108: 66.8 | F108: 14:54 - 15:01 | G108: 14:54:00 | H108: 15:01:00 | I108: 2:24 | J108: 2:31
C109: railway crossing | D109: 101.2 | E109: 66.5 | F109: 14:54 - 15:01 | G109: 14:54:00 | H109: 15:01:00 | I109: 2:24 | J109: 2:31
C110: KONICE | D110: 101.5 | E110: 66.2 | F110: 14:55 - 15:02 | G110: 14:55:00 | H110: 15:02:00 | I110: 2:25 | J110: 2:32
B111: right | C111: st. Staré město | D111: 101.8 | E111: 65.9 | F111: 14:55 - 15:02 | G111: 14:55:00 | H111: 15:02:00 | I111: 2:25 | J111: 2:32
B112: left | C112: st. Chmelnice | D112: 102.1 | E112: 65.6 | F112: 14:55 - 15:03 | G112: 14:55:00 | H112: 15:03:00 | I112: 2:25 | J112: 2:33
B113: left | C113: st. Švehlova | D113: 102.2 | E113: 65.5 | F113: 14:56 - 15:03 | G113: 14:56:00 | H113: 15:03:00 | I113: 2:26 | J113: 2:33
B114: left | C114: crossroad | D114: 102.3 | E114: 65.4 | F114: 14:56 - 15:03 | G114: 14:56:00 | H114: 15:03:00 | I114: 2:26 | J114: 2:33
B115: right | C115: Masarykovo nám. | D115: 102.5 | E115: 65.2 | F115: 14:56 - 15:03 | G115: 14:56:00 | H115: 15:03:00 | I115: 2:26 | J115: 2:33
B116: straight | C116: st. Vrchlického | D116: 102.6 | E116: 65.1 | F116: 14:56 - 15:03 | G116: 14:56:00 | H116: 15:03:00 | I116: 2:26 | J116: 2:33
B117: straight | C117: st. Vrchlického | D117: 102.8 | E117: =$D$183-D117 -> 64.9 | F117: 14:56 - 15:04 | G117: 14:56:00 | H117: 15:04:00 | I117: 2:26 | J117: 2:34
C118: BŘEZSKO | D118: 104.5 | E118: 63.2 | F118: 14:59 - 15:06 | G118: 14:59:00 | H118: 15:06:00 | I118: 2:29 | J118: 2:36
B119: straight | C119: route 373 crossroad | D119: 105.2 | E119: 62.5 | F119: 15:00 - 15:07 | G119: 15:00:00 | H119: 15:07:00 | I119: 2:30 | J119: 2:37
C120: HVOZD | D120: 107.9 | E120: 59.8 | F120: 15:04 - 15:11 | G120: 15:04:00 | H120: 15:11:00 | I120: 2:34 | J120: 2:41
B121: right | C121: route 373 crossroad | D121: 108.4 | E121: 59.3 | F121: 15:04 - 15:12 | G121: 15:04:00 | H121: 15:12:00 | I121: 2:34 | J121: 2:42
B122: left | C122: route 373 crossroad | D122: 108.7 | E122: 59 | F122: 15:05 - 15:13 | G122: 15:05:00 | H122: 15:13:00 | I122: 2:35 | J122: 2:43
A123: GREEN ZONE START | D123: 109.1 | E123: 58.6 | F123: 15:05 - 15:13 | G123: 15:05:00 | H123: 15:13:00 | I123: 2:35 | J123: 2:43
A124: END | D124: 109.3 | E124: 58.4 | F124: 15:06 - 15:13 | G124: 15:06:00 | H124: 15:13:00 | I124: 2:36 | J124: 2:43
B125: straight | C125: crossroad | D125: š
C126: LUKÁ | D126: 111.4 | E126: 56.3 | F126: 15:09 - 15:17 | G126: 15:09:00 | H126: 15:17:00 | I126: 2:39 | J126: 2:47
B127: straight | C127: crossroad | D127: 111.7 | E127: 56 | F127: 15:09 - 15:17 | G127: 15:09:00 | H127: 15:17:00 | I127: 2:39 | J127: 2:47
B128: left | C128: crossroad | D128: 111.9 | E128: 55.8 | F128: 15:09 - 15:17 | G128: 15:09:00 | H128: 15:17:00 | I128: =TEXT(D128/$C$10/24,"h:mm") -> 2:39 | J128: =TEXT(D128/$C$11/24,"h:mm") -> 2:47
B129: straight | C129: JEŠOV crossroad | D129: 114 | E129: 53.7 | F129: 15:12 - 15:21 | G129: 15:12:00 | H129: 15:21:00 | I129: 2:42 | J129: 2:51
C130: SLAVĚTÍN | D130: 114.5 | E130: 53.2 | F130: 15:13 - 15:21 | G130: 15:13:00 | H130: 15:21:00 | I130: 2:43 | J130: 2:51
B131: left | C131: route 37313 crossroad | D131: 114.9 | E131: 52.8 | F131: 15:14 - 15:22 | G131: 15:14:00 | H131: 15:22:00 | I131: 2:44 | J131: 2:52
B132: straight | C132: crossroad | D132: 115.8 | E132: 51.9 | F132: 15:15 - 15:23 | G132: 15:15:00 | H132: 15:23:00 | I132: 2:45 | J132: 2:53
C133: KOVÁŘOV | D133: 116.2 | E133: 51.5 | F133: 15:16 - 15:24 | G133: 15:16:00 | H133: 15:24:00 | I133: 2:46 | J133: 2:54
B134: straight | C134: HVOZDEČKO crossroad | D134: 118.1 | E134: 49.6 | F134: 15:18 - 15:27 | G134: 15:18:00 | H134: 15:27:00 | I134: 2:48 | J134: 2:57
C135: BOUZOV | D135: 121.1 | E135: 46.6 | F135: 15:23 - 15:31 | G135: 15:23:00 | H135: 15:31:00 | I135: 2:53 | J135: 3:01
A136: SPRINT | B136: BOUZOV | D136: 121.8 | E136: 45.9 | F136: 15:24 - 15:32 | G136: 15:24:00 | H136: 15:32:00 | I136: 2:54 | J136: 3:02
B137: straight | C137: crossroad | D137: 121.8 | E137: 45.9 | F137: 15:24 - 15:32 | G137: 15:24:00 | H137: 15:32:00 | I137: 2:54 | J137: 3:02
B138: right | C138: route 37322 crossroad | D138: 123.6 | E138: 44.1 | F138: 15:26 - 15:35 | G138: 15:26:00 | H138: 15:35:00 | I138: 2:56 | J138: 3:05
C139: JEŘMAŇ | D139: 124.6 | E139: 43.1 | F139: 15:28 - 15:36 | G139: 15:28:00 | H139: 15:36:00 | I139: 2:58 | J139: 3:06
C140: VLČICE | D140: 126.8 | E140: 40.9 | F140: 15:31 - 15:40 | G140: 15:31:00 | H140: 15:40:00 | I140: 3:01 | J140: 3:10
B141: right | C141: route 37322 crossroad | D141: 127.7 | E141: 40 | F141: 15:32 - 15:41 | G141: 15:32:00 | H141: 15:41:00 | I141: 3:02 | J141: 3:11
C142: LOŠTICE | D142: 129.1 | E142: 38.6 | F142: 15:34 - 15:43 | G142: 15:34:00 | H142: 15:43:00 | I142: 3:04 | J142: 3:13
B143: right | C143: st. Jevíčská | D143: 129.2 | E143: 38.5 | F143: 15:34 - 15:43 | G143: 15:34:00 | H143: 15:43:00 | I143: 3:04 | J143: 3:13
B144: straight | C144: st. Hradská | D144: 129.5 | E144: 38.2 | F144: 15:35 - 15:44 | G144: 15:35:00 | H144: 15:44:00 | I144: 3:05 | J144: 3:14
B145: straight | C145: Náměstí míru crossroad | D145: 129.8 | E145: 37.9 | F145: 15:35 - 15:44 | G145: 15:35:00 | H145: 15:44:00 | I145: 3:05 | J145: 3:14
B146: left | C146: st. Palackého | D146: 129.9 | E146: 37.8 | F146: 15:35 - 15:44 | G146: 15:35:00 | H146: 15:44:00 | I146: 3:05 | J146: 3:14
B147: right | C147: st. Palackého | D147: 130.1 | E147: 37.6 | F147: 15:35 - 15:45 | G147: 15:35:00 | H147: 15:45:00 | I147: 3:05 | J147: 3:15
C148: MOHELNICE | D148: 131.9 | E148: 35.8 | F148: 15:38 - 15:47 | G148: 15:38:00 | H148: 15:47:00 | I148: 3:08 | J148: 3:17
B149: right | C149: route 444 crossroad | D149: 132.4 | E149: 35.3 | F149: 15:39 - 15:48 | G149: 15:39:00 | H149: 15:48:00 | I149: 3:09 | J149: 3:18
B150: right | C150: st. Družstevní | D150: 132.7 | E150: 35 | F150: 15:39 - 15:49 | G150: 15:39:00 | H150: 15:49:00 | I150: 3:09 | J150: 3:19
B151: 2nd exit straight | C151: roundabout | D151: 134.3 | E151: =$D$183-D151 -> 33.4 | F151: 15:41 - 15:51 | G151: 15:41:00 | H151: 15:51:00 | I151: 3:11 | J151: 3:21
C152: railway crossing | D152: 135.1 | E152: 32.6 | F152: 15:43 - 15:52 | G152: 15:43:00 | H152: 15:52:00 | I152: 3:13 | J152: 3:22
B153: straight | C153: crossroad | D153: 137.1 | E153: 30.6 | F153: 15:45 - 15:55 | G153: 15:45:00 | H153: 15:55:00 | I153: 3:15 | J153: 3:25
C154: STAVENICE | D154: 137.6 | E154: 30.1 | F154: 15:46 - 15:56 | G154: 15:46:00 | H154: 15:56:00 | I154: 3:16 | J154: 3:26
C155: ÚSOV | D155: 140.3 | E155: 27.4 | F155: 15:50 - 16:00 | G155: 15:50:00 | H155: 16:00:00 | I155: 3:20 | J155: 3:30
B156: left | C156: st. Třebovská | D156: 140.8 | E156: 26.9 | F156: 15:51 - 16:01 | G156: 15:51:00 | H156: 16:01:00 | I156: 3:21 | J156: 3:31
B157: right | C157: st. Zámecká | D157: 141.2 | E157: 26.5 | F157: 15:51 - 16:01 | G157: 15:51:00 | H157: 16:01:00 | I157: 3:21 | J157: 3:31
B158: right | C158: st. Zámecká | D158: 141.3 | E158: 26.4 | F158: 15:51 - 16:01 | G158: 15:51:00 | H158: 16:01:00 | I158: 3:21 | J158: 3:31
B159: straight | C159: crossroad | D159: 142.3 | E159: 25.4 | F159: 15:53 - 16:03 | G159: 15:53:00 | H159: 16:03:00 | I159: 3:23 | J159: 3:33
C160: MEDLOV | D160: 144.4 | E160: 23.3 | F160: 15:56 - 16:06 | G160: 15:56:00 | H160: 16:06:00 | I160: 3:26 | J160: 3:36
B161: straight | C161: crossroad | D161: 144.7 | E161: 23 | F161: 15:56 - 16:07 | G161: 15:56:00 | H161: 16:07:00 | I161: 3:26 | J161: 3:37
B162: straight | C162: crossroad | D162: 145.2 | E162: 22.5 | F162: 15:57 - 16:07 | G162: 15:57:00 | H162: 16:07:00 | I162: 3:27 | J162: 3:37
B163: straight | C163: crossroad | D163: 145.3 | E163: 22.4 | F163: 15:57 - 16:07 | G163: 15:57:00 | H163: 16:07:00 | I163: 3:27 | J163: 3:37
B164: right | C164: route 4494 crossroad | D164: 146.2 | E164: 21.5 | F164: 15:58 - 16:09 | G164: 15:58:00 | H164: 16:09:00 | I164: 3:28 | J164: 3:39
B165: straight | C165: crossroad | D165: 147.3 | E165: 20.4 | F165: 16:00 - 16:10 | G165: 16:00:00 | H165: 16:10:00 | I165: 3:30 | J165: 3:40
C166: BENKOV | D166: 147.7 | E166: 20 | F166: 16:01 - 16:11 | G166: 16:01:00 | H166: 16:11:00 | I166: =TEXT(D166/$C$10/24,"h:mm") -> 3:31 | J166: =TEXT(D166/$C$11/24,"h:mm") -> 3:41
B167: left | C167: route 4494 crossroad | D167: 147.9 | E167: =$D$183-D167 -> 19.8 | F167: 16:01 - 16:11 | G167: 16:01:00 | H167: 16:11:00 | I167: 3:31 | J167: 3:41
C168: STŘELICE | D168: 149.9 | E168: 17.8 | F168: 16:04 - 16:14 | G168: 16:04:00 | H168: 16:14:00 | I168: 3:34 | J168: 3:44
B169: left | C169: route 449 crossroad | D169: 150.6 | E169: 17.1 | F169: 16:05 - 16:15 | G169: 16:05:00 | H169: 16:15:00 | I169: 3:35 | J169: 3:45
C170: UNIČOV | D170: 154.6 | E170: 13.1 | F170: 16:10 - 16:21 | G170: 16:10:00 | H170: 16:21:00 | I170: 3:40 | J170: 3:51
B171: left | C171: st. Hrdinů | D171: 156.1 | E171: 11.6 | F171: 16:13 - 16:24 | G171: 16:13:00 | H171: 16:24:00 | I171: 3:43 | J171: 3:54
B172: Pass of the finish line | D172: 156.3 | E172: 11.4 | F172: 16:13 - 16:24 | G172: 16:13:00 | H172: 16:24:00 | I172: 3:43 | J172: 3:54
B173: left | C173: roundabout | D173: 156.6 | E173: 11.1 | F173: 16:13 - 16:24 | G173: 16:13:00 | H173: 16:24:00 | I173: 3:43 | J173: 3:54
B174: straight | C174: route 444 | D174: 157.9 | E174: 9.8 | F174: 16:15 - 16:26 | G174: 16:15:00 | H174: 16:26:00 | I174: 3:45 | J174: 3:56
B175: left | C175: route 4494 crossroad | D175: 160.1 | E175: 7.6 | F175: 16:18 - 16:30 | G175: 16:18:00 | H175: 16:30:00 | I175: 3:48 | J175: 4:00
B176: straight | C176: crossroad | D176: 161.3 | E176: 6.4 | F176: 16:20 - 16:31 | G176: 16:20:00 | H176: 16:31:00 | I176: 3:50 | J176: 4:01
C177: BENKOV | D177: 161.6 | E177: 6.1 | F177: 16:20 - 16:32 | G177: 16:20:00 | H177: 16:32:00 | I177: 3:50 | J177: 4:02
B178: left | C178: route 4494 crossroad | D178: 161.8 | E178: 5.9 | F178: 16:21 - 16:32 | G178: 16:21:00 | H178: 16:32:00 | I178: 3:51 | J178: 4:02
C179: STŘELICE | D179: 163.8 | E179: 3.9 | F179: 16:24 - 16:35 | G179: 16:24:00 | H179: 16:35:00 | I179: 3:54 | J179: 4:05
B180: left | C180: route 449 crossroad | D180: 164.5 | E180: 3.2 | F180: 16:25 - 16:36 | G180: 16:25:00 | H180: 16:36:00 | I180: 3:55 | J180: 4:06
C181: UNIČOV | D181: 166.6 | E181: 1.1 | F181: 16:28 - 16:39 | G181: 16:28:00 | H181: 16:39:00 | I181: 3:58 | J181: 4:09
B182: left | C182: st. Hrdinů | D182: 167.4 | E182: 0.3 | F182: 16:29 - 16:41 | G182: 16:29:00 | H182: 16:41:00 | I182: 3:59 | J182: 4:11
A183: FINISH | C183: Masarykovo nám. | D183: 167.7 | E183: =D183-D183 -> 0 | F183: 16:29 - 16:41 | G183: 16:29:00 | H183: 16:41:00 | I183: =TEXT(D183/$C$10/24,"h:mm") -> 3:59 | J183: =TEXT(D183/$C$11/24,"h:mm") -> 4:11

Sheet 02-Olomouc_Pustevny
A1: Stage timetable:
A3: 2nd stage Olomouc - Pustevny 28. 7. 2023
A5: Stage start time
A6: Start | C6: 11:30:00
A7: KM0 hh:mm | C7: 11:45:00
A9: average speed (km/h)
A10: a | C10: 42
A11: b | C11: 38
B13: remark | C13: place | D13: kilometer | E13: distance to finish | F13: timetable | G13: absolute time A | H13: absolute time B | I13: relative time A | J13: relative time B
C14: ITINERARY | D14: (km) | E14: (km) | F14: (hh:mm - hh:mm) | G14: (hh:mm) | H14: (hh:mm) | I14: (hh:mm) | J14: (hh:mm)
A15: START | C15: Olomouc, sq. Horní | D15: 0 | F15: 11:30 – 11:30 | G15: 11:30:00 | H15: 11:30:00 | I15: =TEXT(D15/$C$10/24,"h:mm") -> 0:00 | J15: =TEXT(D15/$C$11/24,"h:mm") -> 0:00
B16: right | C16: st. Pavelčákova | D16: 0.1
B17: left | C17: st. Svobody | D17: 0.2
B18: straight | C18: st. 17. listopadu | D18: 0.9
C19: st. Kosmonautů | D19: 1.5
B20: right | C20: st. Jeremenkova | D20: 2.4
B21: straight | C21: roundabout | D21: 2.7
B22: straight | C22: st. Tovární | D22: 2.9
B23: straight | C23: st. Lipenská | D23: 3.9
B24: straight | C24: st. Lipenská | D24: 4.7
B25: straight | C25: roundabout | D25: 5.6
B26: right | C26: crossroad | D26: 9.6
C27: PŘÁSLAVICE | D27: 10.3
B28: KM0 | C28: Přáslavice Restaurace | D28: 0 | E28: =$D$151-D28 -> 166.8 | F28: =TEXT(G28,"h:mm")&" - "&TEXT(H28,"h:mm") -> 11:45 - 11:45 | G28: =$C$7+I28 -> 11:45:00 | H28: =$C$7+J28 -> 11:45:00 | I28: =TEXT(D28/$C$10/24,"h:mm") -> 0:00 | J28: =TEXT(D28/$C$11/24,"h:mm") -> 0:00
C29: KOCOUROVEC | D29: 1.5 | E29: =$D$151-D29 -> 165.3 | F29: 11:47 - 11:47 | G29: 11:47:00 | H29: 11:47:00 | I29: 0:02 | J29: 0:02
C30: DASKABÁT | D30: 3.5 | E30: =$D$151-D30 -> 163.3 | F30: 11:50 - 11:50 | G30: 11:50:00 | H30: 11:50:00 | I30: 0:05 | J30: 0:05
B31: right | C31: route 437 crossroad | D31: 6.3
C32: VELKÝ ÚJEZD | D32: 6.6 | E32: =$D$151-D32 -> 160.2 | F32: 11:54 - 11:55 | G32: 11:54:00 | H32: 11:55:00 | I32: 0:09 | J32: 0:10
B33: straight | C33: crossroad | D33: 7.8 | E33: 159 | F33: 11:56 - 11:57 | G33: 11:56:00 | H33: 11:57:00 | I33: 0:11 | J33: 0:12
B34: left | C34: route 441 crossroad | D34: 8.4 | E34: 158.4 | F34: 11:57 - 11:58 | G34: 11:57:00 | H34: 11:58:00 | I34: 0:12 | J34: 0:13
C35: VRCHNÍ PILA | D35: 9.2 | E35: 157.6 | F35: 11:58 - 11:59 | G35: 11:58:00 | H35: 11:59:00 | I35: 0:13 | J35: 0:14
C36: KOZLOV | D36: 12.7 | E36: 154.1 | F36: 12:03 - 12:05 | G36: 12:03:00 | H36: 12:05:00 | I36: 0:18 | J36: 0:20
B37: straight | C37: crossroad | D37: 16 | E37: 150.8 | F37: 12:07 - 12:10 | G37: 12:07:00 | H37: 12:10:00 | I37: 0:22 | J37: 0:25
B38: straight | C38: crossroad | D38: 18.1 | E38: 148.7 | F38: 12:10 - 12:13 | G38: 12:10:00 | H38: 12:13:00 | I38: 0:25 | J38: 0:28
C39: BOŠKOV | D39: 19.5 | E39: 147.3 | F39: 12:12 - 12:15 | G39: 12:12:00 | H39: 12:15:00 | I39: 0:27 | J39: 0:30
C40: POTŠTÁT | D40: 21.7 | E40: 145.1 | F40: 12:16 - 12:19 | G40: 12:16:00 | H40: 12:19:00 | I40: 0:31 | J40: 0:34
B41: straight | C41: st. Olomoucká | D41: 22.9 | E41: 143.9 | F41: 12:17 - 12:21 | G41: 12:17:00 | H41: 12:21:00 | I41: 0:32 | J41: 0:36
B42: straight | C42: st. Oderská | D42: 23.3 | E42: 143.5 | F42: 12:18 - 12:21 | G42: 12:18:00 | H42: 12:21:00 | I42: 0:33 | J42: 0:36
B43: right | C43: st. Oderská | D43: 23.5 | E43: 143.3 | F43: 12:18 - 12:22 | G43: 12:18:00 | H43: 12:22:00 | I43: 0:33 | J43: 0:37
B44: straight | C44: route 441 crossroad | D44: 25.4 | E44: 141.4 | F44: 12:21 - 12:25 | G44: 12:21:00 | H44: 12:25:00 | I44: 0:36 | J44: 0:40
B45: straight | C45: route 441 crossroad | D45: 27.3 | E45: 139.5 | F45: 12:24 - 12:28 | G45: 12:24:00 | H45: 12:28:00 | I45: 0:39 | J45: 0:43
B46: straight | C46: route 441 crossroad | D46: 28.1 | E46: 138.7 | F46: 12:25 - 12:29 | G46: 12:25:00 | H46: 12:29:00 | I46: 0:40 | J46: 0:44
B47: straight | C47: route 441 crossroad | D47: 28.6 | E47: 138.2 | F47: 12:25 - 12:30 | G47: 12:25:00 | H47: 12:30:00 | I47: 0:40 | J47: 0:45
A48: KM 30 patník | D48: 30 | E48: 136.8 | F48: 12:27 - 12:32 | G48: 12:27:00 | H48: 12:32:00 | I48: 0:42 | J48: 0:47
B49: straight | C49: route 441 crossroad | D49: 34.4 | E49: 132.4 | F49: 12:34 - 12:39 | G49: 12:34:00 | H49: 12:39:00 | I49: 0:49 | J49: 0:54
B50: straight | C50: route 441 crossroad | D50: 36.5 | E50: 130.3 | F50: 12:37 - 12:42 | G50: 12:37:00 | H50: 12:42:00 | I50: 0:52 | J50: 0:57
C51: JAKUBČOVICE NAD ODROU | D51: 36.9 | E51: 129.9 | F51: 12:37 - 12:43 | G51: 12:37:00 | H51: 12:43:00 | I51: 0:52 | J51: 0:58
B52: straight | C52: crossroad | D52: 37 | E52: 129.8 | F52: 12:37 - 12:43 | G52: 12:37:00 | H52: 12:43:00 | I52: 0:52 | J52: 0:58
C53: ODRY | D53: 39.6 | E53: 127.2 | F53: 12:41 - 12:47 | G53: 12:41:00 | H53: 12:47:00 | I53: 0:56 | J53: 1:02
B54: right | C54: st. Vítkovská | D54: 40.3 | E54: 126.5 | F54: 12:42 - 12:48 | G54: 12:42:00 | H54: 12:48:00 | I54: 0:57 | J54: 1:03
A55: GREEN ZONE START | D55: 40.5 | E55: 126.3 | F55: 12:42 - 12:48 | G55: 12:42:00 | H55: 12:48:00 | I55: 0:57 | J55: 1:03
A56: END | D56: 40.7 | E56: 126.1 | F56: 12:43 - 12:49 | G56: 12:43:00 | H56: 12:49:00 | I56: 0:58 | J56: 1:04
B57: right | C57: st. 1. máje | D57: 41.5 | E57: 125.3 | F57: 12:44 - 12:50 | G57: 12:44:00 | H57: 12:50:00 | I57: 0:59 | J57: 1:05
B58: left | C58: st. 1. máje | D58: 41.7 | E58: 125.1 | F58: 12:44 - 12:50 | G58: 12:44:00 | H58: 12:50:00 | I58: 0:59 | J58: 1:05
B59: straight | C59: st. Hranická | D59: 42.2 | E59: 124.6 | F59: 12:45 - 12:51 | G59: 12:45:00 | H59: 12:51:00 | I59: 1:00 | J59: 1:06
B60: straight | C60: st. Hranická | D60: 42.4 | E60: 124.4 | F60: 12:45 - 12:51 | G60: 12:45:00 | H60: 12:51:00 | I60: 1:00 | J60: 1:06
B61: left | C61: roundabout | D61: 43 | E61: 123.8 | F61: 12:46 - 12:52 | G61: 12:46:00 | H61: 12:52:00 | I61: 1:01 | J61: 1:07
B62: straight | C62: crossroad | D62: 43.2 | E62: 123.6 | F62: 12:46 - 12:53 | G62: 12:46:00 | H62: 12:53:00 | I62: 1:01 | J62: 1:08
B63: straight | C63: crossroad | D63: 44.6 | E63: =$D$151-D63 -> 122.2 | F63: 12:48 - 12:55 | G63: 12:48:00 | H63: 12:55:00 | I63: 1:03 | J63: 1:10
B64: railway crossing!!! | D64: 44.7 | E64: 122.1 | F64: 12:48 - 12:55 | G64: 12:48:00 | H64: 12:55:00 | I64: 1:03 | J64: 1:10
C65: MANKOVICE | D65: 46.5 | E65: 120.3 | F65: 12:51 - 12:58 | G65: 12:51:00 | H65: 12:58:00 | I65: 1:06 | J65: 1:13
B66: straight | C66: crossroad | D66: 47 | E66: 119.8 | F66: 12:52 - 12:59 | G66: 12:52:00 | H66: 12:59:00 | I66: 1:07 | J66: 1:14
B67: straight | C67: crossroad | D67: 47.2 | E67: 119.6 | F67: 12:52 - 12:59 | G67: 12:52:00 | H67: 12:59:00 | I67: 1:07 | J67: 1:14
B68: right | C68: route 04810 crossroad | D68: 49.4 | E68: 117.4 | F68: 12:55 - 13:03 | G68: 12:55:00 | H68: 13:03:00 | I68: 1:10 | J68: 1:18
B69: railway crossing!!! | D69: 49.9 | E69: 116.9 | F69: 12:56 - 13:03 | G69: 12:56:00 | H69: 13:03:00 | I69: 1:11 | J69: 1:18
B70: railway crossing | D70: 51 | E70: 115.8 | F70: 12:57 - 13:05 | G70: 12:57:00 | H70: 13:05:00 | I70: 1:12 | J70: 1:20
C71: JESENÍK NAD ODROU | D71: 51.2 | E71: 115.6 | F71: 12:58 - 13:05 | G71: 12:58:00 | H71: 13:05:00 | I71: 1:13 | J71: 1:20
B72: left | C72: route 04810 | D72: 51.7 | E72: 115.1 | F72: 12:58 - 13:06 | G72: 12:58:00 | H72: 13:06:00 | I72: 1:13 | J72: 1:21
B73: right | C73: roundabout | D73: 52.3 | E73: 114.5 | F73: 12:59 - 13:07 | G73: 12:59:00 | H73: 13:07:00 | I73: 1:14 | J73: 1:22
B74: left | C74: route 0484 crossroad | D74: 52.5 | E74: 114.3 | F74: 13:00 - 13:07 | G74: 13:00:00 | H74: 13:07:00 | I74: 1:15 | J74: 1:22
B75: right | C75: crossroad | D75: 53.3 | E75: 113.5 | F75: 13:01 - 13:09 | G75: 13:01:00 | H75: 13:09:00 | I75: 1:16 | J75: 1:24
B76: straight | C76: crossroad | D76: 54.1 | E76: 112.7 | F76: 13:02 - 13:10 | G76: 13:02:00 | H76: 13:10:00 | I76: 1:17 | J76: 1:25
C77: POLOUVSÍ | D77: 55.3 | E77: 111.5 | F77: 13:04 - 13:12 | G77: 13:04:00 | H77: 13:12:00 | I77: 1:19 | J77: 1:27
B78: left | C78: route 0486 crossroad | D78: 56.6 | E78: 110.2 | F78: 13:05 - 13:14 | G78: 13:05:00 | H78: 13:14:00 | I78: 1:20 | J78: 1:29
B79: left | C79: route 04816 crossroad | D79: 57.8 | E79: 109 | F79: 13:07 - 13:16 | G79: 13:07:00 | H79: 13:16:00 | I79: 1:22 | J79: 1:31
C80: STAROJICKÁ LHOTA | D80: 58.2 | E80: 108.6 | F80: 13:08 - 13:16 | G80: 13:08:00 | H80: 13:16:00 | I80: 1:23 | J80: 1:31
B81: straight | C81: crossroad | D81: 58.5 | E81: 108.3 | F81: 13:08 - 13:17 | G81: 13:08:00 | H81: 13:17:00 | I81: 1:23 | J81: 1:32
C82: STARÝJIČÍN | D82: 61.2 | E82: 105.6 | F82: 13:12 - 13:21 | G82: 13:12:00 | H82: 13:21:00 | I82: 1:27 | J82: 1:36
B83: straight | C83: crossroad | D83: 61.8 | E83: 105 | F83: 13:13 - 13:22 | G83: 13:13:00 | H83: 13:22:00 | I83: 1:28 | J83: 1:37
B84: straight | C84: crossroad | D84: 62.4 | E84: 104.4 | F84: 13:14 - 13:23 | G84: 13:14:00 | H84: 13:23:00 | I84: 1:29 | J84: 1:38
C85: route 04816 | D85: 62.5 | E85: 104.3 | F85: 13:14 - 13:23 | G85: 13:14:00 | H85: 13:23:00 | I85: 1:29 | J85: 1:38
B86: straight | C86: crossroad | D86: 63.6 | E86: 103.2 | F86: 13:15 - 13:25 | G86: 13:15:00 | H86: 13:25:00 | I86: 1:30 | J86: 1:40
B87: right | C87: crossroad | D87: 63.8 | E87: 103 | F87: 13:16 - 13:25 | G87: 13:16:00 | H87: 13:25:00 | I87: 1:31 | J87: 1:40
C88: NOVÝ JIČÍN | D88: 65.1 | E88: 101.7 | F88: 13:18 - 13:27 | G88: 13:18:00 | H88: 13:27:00 | I88: 1:33 | J88: 1:42
B89: right | C89: crossroad | D89: 65.4 | E89: 101.4 | F89: 13:18 - 13:28 | G89: 13:18:00 | H89: 13:28:00 | I89: 1:33 | J89: 1:43
B90: left | C90: st. Skalky | D90: 66 | E90: 100.8 | F90: 13:19 - 13:29 | G90: 13:19:00 | H90: 13:29:00 | I90: 1:34 | J90: 1:44
B91: right | C91: st. Boženy Benešové | D91: 66.4 | E91: 100.4 | F91: 13:19 - 13:29 | G91: 13:19:00 | H91: 13:29:00 | I91: 1:34 | J91: 1:44
B92: left | C92: route 57 crossroad | D92: 66.9 | E92: 99.9 | F92: 13:20 - 13:30 | G92: 13:20:00 | H92: 13:30:00 | I92: 1:35 | J92: 1:45
B93: right | C93: st. Máchova | D93: 67.1 | E93: 99.7 | F93: 13:20 - 13:30 | G93: 13:20:00 | H93: 13:30:00 | I93: 1:35 | J93: 1:45
B94: left | C94: st. U Jičínky | D94: 67.5 | E94: 99.3 | F94: 13:21 - 13:31 | G94: 13:21:00 | H94: 13:31:00 | I94: 1:36 | J94: 1:46
B95: right | C95: roundabout | D95: 67.6 | E95: =$D$151-D95 -> 99.2 | F95: 13:21 - 13:31 | G95: 13:21:00 | H95: 13:31:00 | I95: 1:36 | J95: 1:46
B96: right | C96: st. Beskydská | D96: 67.8 | E96: 99 | F96: 13:21 - 13:32 | G96: 13:21:00 | H96: 13:32:00 | I96: 1:36 | J96: 1:47
B97: straight | C97: crossroad | D97: 68.6 | E97: 98.2 | F97: 13:23 - 13:33 | G97: 13:23:00 | H97: 13:33:00 | I97: 1:38 | J97: 1:48
C98: ŽILINA | D98: 68.8 | E98: 98 | F98: 13:23 - 13:33 | G98: 13:23:00 | H98: 13:33:00 | I98: 1:38 | J98: 1:48
C99: ŽIVOTICE U NOVÉHO JIČÍNA | D99: 72 | E99: 94.8 | F99: 13:27 - 13:38 | G99: 13:27:00 | H99: 13:38:00 | I99: 1:42 | J99: 1:53
C100: MOŘKOV | D100: 74.6 | E100: 92.2 | F100: 13:31 - 13:42 | G100: 13:31:00 | H100: 13:42:00 | I100: 1:46 | J100: 1:57
B101: left | C101: route 483 crossroad | D101: 74.7 | E101: 92.1 | F101: 13:31 - 13:42 | G101: 13:31:00 | H101: 13:42:00 | I101: 1:46 | J101: 1:57
C102: VEŘOVICE | D102: 76.9 | E102: 89.9 | F102: 13:34 - 13:46 | G102: 13:34:00 | H102: 13:46:00 | I102: 1:49 | J102: 2:01
A103: FEED ZONE | D103: 77 | E103: 89.8 | F103: 13:35 - 13:46 | G103: 13:35:00 | H103: 13:46:00 | I103: 1:50 | J103: 2:01
A104: GREEN ZONE START | D104: 77 | E104: 89.8 | F104: 13:35 - 13:46 | G104: 13:35:00 | H104: 13:46:00 | I104: 1:50 | J104: 2:01
A105: END | D105: 77.2 | E105: 89.6 | F105: 13:35 - 13:46 | G105: 13:35:00 | H105: 13:46:00 | I105: 1:50 | J105: 2:01
B106: straight | C106: crossroad | D106: 77.4 | E106: 89.4
B107: railway crossing | D107: 80.4 | E107: 86.4 | F107: 13:39 - 13:51 | G107: 13:39:00 | H107: 13:51:00 | I107: 1:54 | J107: 2:06
C108: BORDOVICE | D108: 81.5 | E108: 85.3 | F108: 13:41 - 13:53 | G108: 13:41:00 | H108: 13:53:00 | I108: 1:56 | J108: 2:08
B109: straight | C109: crossroad | D109: 82.7 | E109: 84.1 | F109: 13:43 - 13:55 | G109: 13:43:00 | H109: 13:55:00 | I109: 1:58 | J109: 2:10
C110: FRENŠTÁT POD RADHOŠTĚM | D110: 85.2 | E110: 81.6 | F110: 13:46 - 13:59 | G110: 13:46:00 | H110: 13:59:00 | I110: 2:01 | J110: 2:14
B111: straight | C111: roundabout | D111: 85.9 | E111: 80.9 | F111: 13:47 - 14:00 | G111: 13:47:00 | H111: 14:00:00 | I111: 2:02 | J111: 2:15
B112: straight | C112: st. Záhuní | D112: 86.2 | E112: 80.6 | F112: 13:48 - 14:01 | G112: 13:48:00 | H112: 14:01:00 | I112: 2:03 | J112: 2:16
B113: left | C113: roundabout | D113: 87 | E113: 79.8 | F113: 13:49 - 14:02 | G113: 13:49:00 | H113: 14:02:00 | I113: 2:04 | J113: 2:17
B114: right | C114: roundabout | D114: 87.2 | E114: 79.6 | F114: 13:49 - 14:02 | G114: 13:49:00 | H114: 14:02:00 | I114: 2:04 | J114: 2:17
B115: straight | C115: st. Nádražní | D115: 87.7 | E115: 79.1 | F115: 13:50 - 14:03 | G115: 13:50:00 | H115: 14:03:00 | I115: 2:05 | J115: 2:18
B116: railway crossing | D116: 88.6 | E116: 78.2 | F116: 13:51 - 14:04 | G116: 13:51:00 | H116: 14:04:00 | I116: 2:06 | J116: 2:19
B117: straight | C117: roundabout | D117: 90.5 | E117: 76.3 | F117: 13:54 - 14:07 | G117: 13:54:00 | H117: 14:07:00 | I117: 2:09 | J117: 2:22
C118: TROJANOVICE | D118: 90.7 | E118: 76.1 | F118: 13:54 - 14:08 | G118: 13:54:00 | H118: 14:08:00 | I118: 2:09 | J118: 2:23
A119: SPRINT | B119: Trojanovice | D119: 91 | E119: 75.8 | F119: 13:55 - 14:08 | G119: 13:55:00 | H119: 14:08:00 | I119: 2:10 | J119: 2:23
A120: GPM 1st Cat | B120: 1 008 m n. m. | C120: Pustevny | D120: 98.6 | E120: 68.2 | F120: 14:05 - 14:20 | G120: 14:05:00 | H120: 14:20:00 | I120: 2:20 | J120: 2:35
B121: right | C121: route 4837 crossroad | D121: 98.4 | E121: 68.4 | F121: 14:05 - 14:20 | G121: 14:05:00 | H121: 14:20:00 | I121: 2:20 | J121: 2:35
B122: left | C122: route 35 crossroad | D122: 108.1 | E122: 58.7 | F122: 14:19 - 14:35 | G122: 14:19:00 | H122: 14:35:00 | I122: 2:34 | J122: 2:50
C123: HORNÍ BEČVA | D123: 109.5 | E123: 57.3 | F123: 14:21 - 14:37 | G123: 14:21:00 | H123: 14:37:00 | I123: 2:36 | J123: 2:52
B124: straight | C124: crossroad | D124: 111.1 | E124: 55.7 | F124: 14:23 - 14:40 | G124: 14:23:00 | H124: 14:40:00 | I124: 2:38 | J124: 2:55
B125: straight | C125: crossroad | D125: 112.6 | E125: 54.2 | F125: 14:25 - 14:42 | G125: 14:25:00 | H125: 14:42:00 | I125: 2:40 | J125: 2:57
A126: GREEN ZONE START | D126: 115 | E126: 51.8 | F126: 14:29 - 14:46 | G126: 14:29:00 | H126: 14:46:00 | I126: 2:44 | J126: 3:01
A127: END | D127: 115.2 | E127: =$D$151-D127 -> 51.6 | F127: 14:29 - 14:46 | G127: 14:29:00 | H127: 14:46:00 | I127: 2:44 | J127: 3:01
B128: left | C128: route 56 crossroad | D128: 116.5 | E128: 50.3 | F128: 14:31 - 14:48 | G128: 14:31:00 | H128: 14:48:00 | I128: 2:46 | J128: 3:03
C129: BÍLÁ | D129: 123.4 | E129: 43.4 | F129: 14:41 - 14:59 | G129: 14:41:00 | H129: 14:59:00 | I129: 2:56 | J129: 3:14
B130: straight | C130: crossroad | D130: 125.9 | E130: 40.9 | F130: 14:44 - 15:03 | G130: 14:44:00 | H130: 15:03:00 | I130: 2:59 | J130: 3:18
B131: straight | C131: crossroad | D131: 127.2 | E131: 39.6 | F131: 14:46 - 15:05 | G131: 14:46:00 | H131: 15:05:00 | I131: 3:01 | J131: 3:20
B132: left | C132: OSTRAVICE | D132: 137.1 | E132: 29.7 | F132: 15:00 - 15:21 | G132: 15:00:00 | H132: 15:21:00 | I132: 3:15 | J132: 3:36
C133: FRÝDLANT AND OSTRAVICÍ | D133: 142.1 | E133: 24.7 | F133: 15:08 - 15:29 | G133: 15:08:00 | H133: 15:29:00 | I133: 3:23 | J133: 3:44
B134: right | C134: ROUTE 483 crossroad | D134: 142.9 | E134: 23.9 | F134: 15:09 - 15:30 | G134: 15:09:00 | H134: 15:30:00 | I134: 3:24 | J134: 3:45
B135: right | C135: crossroad | D135: 143 | E135: 23.8 | F135: 15:09 - 15:30 | G135: 15:09:00 | H135: 15:30:00 | I135: 3:24 | J135: 3:45
B136: straight | C136: crossroad | D136: 144 | E136: 22.8 | F136: 15:10 - 15:32 | G136: 15:10:00 | H136: 15:32:00 | I136: 3:25 | J136: 3:47
C137: ČELADNÁ | D137: 145.4 | E137: 21.4 | F137: 15:12 - 15:34 | G137: 15:12:00 | H137: 15:34:00 | I137: 3:27 | J137: 3:49
B138: straight | C138: roundabout | D138: 146 | E138: 20.8 | F138: 15:13 - 15:35 | G138: 15:13:00 | H138: 15:35:00 | I138: 3:28 | J138: 3:50
B139: right | C139: crossroad | D139: 146.3 | E139: 20.5 | F139: 15:14 - 15:36 | G139: 15:14:00 | H139: 15:36:00 | I139: 3:29 | J139: 3:51
B140: railway crossing | D140: 148.5 | E140: 18.3 | F140: 15:17 - 15:39 | G140: 15:17:00 | H140: 15:39:00 | I140: 3:32 | J140: 3:54
B141: straight | C141: crossroad | D141: 151.6 | E141: 15.2 | F141: 15:21 - 15:44 | G141: 15:21:00 | H141: 15:44:00 | I141: 3:36 | J141: 3:59
B142: straight | C142: route 4866 crossroad | D142: 152.8 | E142: 14 | F142: 15:23 - 15:46 | G142: 15:23:00 | H142: 15:46:00 | I142: 3:38 | J142: 4:01
B143: straight | C143: crossroad | D143: 154.1 | E143: 12.7 | F143: 15:25 - 15:48 | G143: 15:25:00 | H143: 15:48:00 | I143: 3:40 | J143: 4:03
C144: FRENŠTÁT POD RADHOŠTĚM | D144: 154.6 | E144: 12.2 | F144: 15:25 - 15:49 | G144: 15:25:00 | H144: 15:49:00 | I144: 3:40 | J144: 4:04
B145: left | C145: route 4835 crossrad | D145: 155.9 | E145: 10.9 | F145: 15:27 - 15:51 | G145: 15:27:00 | H145: 15:51:00 | I145: 3:42 | J145: 4:06
B146: railway crossing | D146: 156.7 | E146: 10.1 | F146: 15:28 - 15:52 | G146: 15:28:00 | H146: 15:52:00 | I146: 3:43 | J146: 4:07
B147: straight | C147: roundabout | D147: 158.8 | E147: 8 | F147: 15:31 - 15:55 | G147: 15:31:00 | H147: 15:55:00 | I147: 3:46 | J147: 4:10
C148: TROJANOVICE | D148: 159 | E148: 7.8 | F148: 15:32 - 15:56 | G148: 15:32:00 | H148: 15:56:00 | I148: 3:47 | J148: 4:11
B149: left | C149: route 4837 crossroad | D149: 166.7 | E149: 0.1 | F149: 15:43 - 16:08 | G149: 15:43:00 | H149: 16:08:00 | I149: 3:58 | J149: 4:23
A150: GPM 1st Cat | B150: 1008 m.n.m | C150: Pustevny
A151: FINISH | B151: 1009 m n. m. | C151: Pustevny - Beskydská zoo | D151: 166.8 | E151: 0 | F151: 15:43 - 16:08 | G151: 15:43:00 | H151: 16:08:00 | I151: 3:58 | J151: 4:23

Sheet 03-Mor. Třebová_ ČHS
A1: Stage timetable:
A3: 3rd stage Moravská Třebová - Dlouhé Stráně, 29. 7. 2023
A5: Stage start time
A6: Start | C6: 12:00:00
A7: KM0 hh:mm | C7: 12:05:00
A9: average speed (km/h)
A10: a | C10: 42
A11: b | C11: 40
B13: remark | C13: place | D13: kilometer | E13: distance to finish | F13: timetable | G13: absolute tiime A | H13: absolute time B | I13: relative time A | J13: relative tme B
C14: ITINERARY | D14: (km) | E14: (km) | F14: (hh:mm - hh:mm) | G14: (hh:mm) | H14: (hh:mm) | I14: (hh:mm) | J14: (hh:mm)
A15: START | C15: Moravská Třebová náměstí T.G.M. | D15: 0 | F15: =C6 -> 12:00:00 | G15: =$C$6+I15 -> 12:00:00 | H15: =$C$6+J15 -> 12:00:00 | I15: =TEXT(D15/$C$10/24,"h:mm") -> 0:00 | J15: =TEXT(D15/$C$11/24,"h:mm") -> 0:00
B16: right | C16: st. Bránská | D16: 0.1
B17: left | C17: st. Jévíčská | D17: 0.2
B18: left | C18: st. Piaristická | D18: 0.3
B19: left | C19: st. Rybní náměstí | D19: 0.4
B20: right | C20: st. Olomoucká | D20: 0.7
B21: right | C21: crossroad | D21: 1.6
B22: right | C22: crossroad | D22: 1.9
B23: KM0 | C23: route 3711 | D23: 0 | E23: =$D$153-D23 -> 161.5 | F23: =TEXT(G23,"h:mm")&" - "&TEXT(H23,"h:mm") -> 12:05 - 12:05 | G23: =$C$7+I23 -> 12:05:00 | H23: =$C$7+J23 -> 12:05:00 | I23: =TEXT(D23/$C$10/24,"h:mm") -> 0:00 | J23: =TEXT(D23/$C$11/24,"h:mm") -> 0:00
B24: right | C24: route 371 crossroad | D24: 1.5 | E24: 160 | F24: 12:07 - 12:07 | G24: 12:07:00 | H24: 12:07:00 | I24: 0:02 | J24: 0:02
B25: railway crossing | D25: 1.9 | E25: 159.6 | F25: 12:07 - 12:07 | G25: 12:07:00 | H25: 12:07:00 | I25: 0:02 | J25: 0:02
B26: left | C26: ROZSTÁNÍ crossroad | D26: 3.3 | E26: 158.2 | F26: 12:09 - 12:09 | G26: 12:09:00 | H26: 12:09:00 | I26: 0:04 | J26: 0:04
B27: straight | C27: crossroad | D27: 3.5 | E27: 158 | F27: 12:10 - 12:10 | G27: 12:10:00 | H27: 12:10:00 | I27: 0:05 | J27: 0:05
B28: straight | C28: crossroad | D28: 4.1 | E28: 157.4 | F28: 12:10 - 12:11 | G28: 12:10:00 | H28: 12:11:00 | I28: 0:05 | J28: 0:06
B29: straight | C29: crossroad | D29: 5.4 | E29: 156.1 | F29: 12:12 - 12:13 | G29: 12:12:00 | H29: 12:13:00 | I29: 0:07 | J29: 0:08
C30: MĚSTEČKO TRNÁVKA | D30: 6.7 | E30: 154.8 | F30: 12:14 - 12:15 | G30: 12:14:00 | H30: 12:15:00 | I30: 0:09 | J30: 0:10
B31: straight | C31: crossroad | D31: 7 | E31: 154.5 | F31: 12:15 - 12:15 | G31: 12:15:00 | H31: 12:15:00 | I31: 0:10 | J31: 0:10
B32: left | C32: route 644 crossroad | D32: 7.1 | E32: 154.4 | F32: 12:15 - 12:15 | G32: 12:15:00 | H32: 12:15:00 | I32: 0:10 | J32: 0:10
B33: railway crossing | D33: 7.6 | E33: 153.9 | F33: 12:15 - 12:16 | G33: 12:15:00 | H33: 12:16:00 | I33: 0:10 | J33: 0:11
C34: MEZIHOŘÍ | D34: 9 | E34: 152.5 | F34: 12:17 - 12:18 | G34: 12:17:00 | H34: 12:18:00 | I34: 0:12 | J34: 0:13
B35: straight | C35: crossroad | D35: 9.2 | E35: 152.3 | F35: 12:18 - 12:18 | G35: 12:18:00 | H35: 12:18:00 | I35: 0:13 | J35: 0:13
C36: PETRŮVKA | D36: 10.5 | E36: 151 | F36: 12:20 - 12:20 | G36: 12:20:00 | H36: 12:20:00 | I36: 0:15 | J36: 0:15
B37: straight | C37: crossroad | D37: 10.6 | E37: 150.9 | F37: 12:20 - 12:20 | G37: 12:20:00 | H37: 12:20:00 | I37: 0:15 | J37: 0:15
B38: straight | C38: crossroad | D38: 10.8 | E38: 150.7 | F38: 12:20 - 12:21 | G38: 12:20:00 | H38: 12:21:00 | I38: 0:15 | J38: 0:16
C39: PEČÍKOV | D39: 12.3 | E39: 149.2 | F39: 12:22 - 12:23 | G39: 12:22:00 | H39: 12:23:00 | I39: 0:17 | J39: 0:18
B40: straight | C40: crossroad | D40: 12.5 | E40: 149 | F40: 12:22 - 12:23 | G40: 12:22:00 | H40: 12:23:00 | I40: 0:17 | J40: 0:18
C41: HRANIČKY | D41: 13.5 | E41: 148 | F41: 12:24 - 12:25 | G41: 12:24:00 | H41: 12:25:00 | I41: 0:19 | J41: 0:20
C42: VRANOVÁ | D42: 15.6 | E42: 145.9 | F42: 12:27 - 12:28 | G42: 12:27:00 | H42: 12:28:00 | I42: 0:22 | J42: 0:23
B43: left | C43: route 644 crossroad | D43: 15.8 | E43: 145.7 | F43: 12:27 - 12:28 | G43: 12:27:00 | H43: 12:28:00 | I43: 0:22 | J43: 0:23
A44: GPM 2nd Cat. | B44: 435 m.n.m. | C44: Veselí | D44: 18.8 | E44: 142.7 | F44: 12:31 - 12:33 | G44: 12:31:00 | H44: 12:33:00 | I44: 0:26 | J44: 0:28
C45: VESELÍ | D45: 18.9 | E45: 142.6 | F45: 12:32 - 12:33 | G45: 12:32:00 | H45: 12:33:00 | I45: 0:27 | J45: 0:28
C46: VACETIN | D46: 20.8 | E46: 140.7 | F46: 12:34 - 12:36 | G46: 12:34:00 | H46: 12:36:00 | I46: 0:29 | J46: 0:31
C47: ZAVADILKA | D47: 22.3 | E47: 139.2 | F47: 12:36 - 12:38 | G47: 12:36:00 | H47: 12:38:00 | I47: 0:31 | J47: 0:33
B48: right | C48: crossorad | D48: 22.4 | E48: 139.1 | F48: 12:37 - 12:38 | G48: 12:37:00 | H48: 12:38:00 | I48: 0:32 | J48: 0:33
B49: straight | C49: crossroad | D49: 22.5 | E49: 139 | F49: 12:37 - 12:38 | G49: 12:37:00 | H49: 12:38:00 | I49: 0:32 | J49: 0:33
C50: SVINOV U PAVLOVA | D50: 23.2 | E50: 138.3 | F50: 12:38 - 12:39 | G50: 12:38:00 | H50: 12:39:00 | I50: 0:33 | J50: 0:34
B51: right | C51: crossorad | D51: 23.6 | E51: 137.9 | F51: 12:38 - 12:40 | G51: 12:38:00 | H51: 12:40:00 | I51: 0:33 | J51: 0:35
C52: LÍŠNICE | D52: 23.9 | E52: 137.6 | F52: 12:39 - 12:40 | G52: 12:39:00 | H52: 12:40:00 | I52: 0:34 | J52: 0:35
B53: straight | C53: crossroad | D53: 24.3 | E53: 137.2 | F53: 12:39 - 12:41 | G53: 12:39:00 | H53: 12:41:00 | I53: 0:34 | J53: 0:36
C54: ÚJEZD | D54: 25.8 | E54: 135.7 | F54: 12:41 - 12:43 | G54: 12:41:00 | H54: 12:43:00 | I54: 0:36 | J54: 0:38
C55: MOHELNICE | D55: 27.3 | E55: 134.2 | F55: 12:44 - 12:45 | G55: 12:44:00 | H55: 12:45:00 | I55: 0:39 | J55: 0:40
B56: left | C56: route 444 crossroad | D56: 27.6 | E56: 133.9 | F56: 12:44 - 12:46 | G56: 12:44:00 | H56: 12:46:00 | I56: 0:39 | J56: 0:41
C57: st. Družstevní crossroad | D57: 27.9 | E57: 133.6 | F57: =TEXT(G57,"h:mm")&" - "&TEXT(H57,"h:mm") -> 12:44 - 12:46 | G57: =$C$7+I57 -> 12:44:00 | H57: =$C$7+J57 -> 12:46:00 | I57: =TEXT(D57/$C$10/24,"h:mm") -> 0:39 | J57: =TEXT(D57/$C$11/24,"h:mm") -> 0:41
B58: 2nd exit straight | C58: roundabout | D58: 29.5 | E58: 132 | F58: 12:47 - 12:49 | G58: 12:47:00 | H58: 12:49:00 | I58: 0:42 | J58: 0:44
A59: KM 30 patník
B60: railway crossing | D60: 30.3 | E60: =$D$153-D60 -> 131.2 | F60: 12:48 - 12:50 | G60: 12:48:00 | H60: 12:50:00 | I60: 0:43 | J60: 0:45
B61: left | C61: crossroad | D61: 30.7 | E61: 130.8 | F61: 12:48 - 12:51 | G61: 12:48:00 | H61: 12:51:00 | I61: 0:43 | J61: 0:46
B62: straight | C62: crossroad | D62: 32.3 | E62: 129.2 | F62: 12:51 - 12:53 | G62: 12:51:00 | H62: 12:53:00 | I62: 0:46 | J62: 0:48
C63: STAVENICE | D63: 32.9 | E63: 128.6 | F63: 12:52 - 12:54 | G63: 12:52:00 | H63: 12:54:00 | I63: 0:47 | J63: 0:49
C64: ÚSOV | D64: 35.7 | E64: 125.8 | F64: =TEXT(G64,"h:mm")&" - "&TEXT(H64,"h:mm") -> 12:56 - 12:58 | G64: =$C$7+I64 -> 12:56:00 | H64: 12:58:00 | I64: =TEXT(D64/$C$10/24,"h:mm") -> 0:51 | J64: =TEXT(D64/$C$11/24,"h:mm") -> 0:53
B65: left | C65: st. Třebovská | D65: 35.9 | E65: 125.6 | F65: =TEXT(G65,"h:mm")&" - "&TEXT(H65,"h:mm") -> 12:56 - 12:58 | G65: 12:56:00 | H65: 12:58:00 | I65: =TEXT(D65/$C$10/24,"h:mm") -> 0:51 | J65: =TEXT(D65/$C$11/24,"h:mm") -> 0:53
B66: straight | C66: st. nám. Míru | D66: 36.3 | E66: 125.2 | F66: =TEXT(G66,"h:mm")&" - "&TEXT(H66,"h:mm") -> 12:56 - 12:59 | G66: 12:56:00 | H66: 12:59:00 | I66: =TEXT(D66/$C$10/24,"h:mm") -> 0:51 | J66: =TEXT(D66/$C$11/24,"h:mm") -> 0:54
B67: right | C67: st. Školní | D67: 36.5 | E67: 125 | F67: =TEXT(G67,"h:mm")&" - "&TEXT(H67,"h:mm") -> 12:57 - 12:59 | G67: 12:57:00 | H67: 12:59:00 | I67: =TEXT(D67/$C$10/24,"h:mm") -> 0:52 | J67: =TEXT(D67/$C$11/24,"h:mm") -> 0:54
B68: left | C68: st. Školní | D68: 37 | E68: 124.5 | F68: =TEXT(G68,"h:mm")&" - "&TEXT(H68,"h:mm") -> 12:57 - 13:00 | G68: 12:57:00 | H68: 13:00:00 | I68: =TEXT(D68/$C$10/24,"h:mm") -> 0:52 | J68: =TEXT(D68/$C$11/24,"h:mm") -> 0:55
C69: KLOPINA | D69: 38.3 | E69: 123.2 | F69: 12:59 - 13:02 | G69: 12:59:00 | H69: 13:02:00 | I69: 0:54 | J69: 0:57
B70: straight | C70: route 31549 crossroad | D70: 38.4 | E70: 123.1 | F70: 12:59 - 13:02 | G70: 12:59:00 | H70: 13:02:00 | I70: 0:54 | J70: 0:57
B71: straight | C71: crossroad | D71: 39 | E71: 122.5 | F71: 13:00 - 13:03 | G71: 13:00:00 | H71: 13:03:00 | I71: 0:55 | J71: 0:58
B72: straight | C72: crossorad | D72: 39.4 | E72: 122.1 | F72: 13:01 - 13:04 | G72: 13:01:00 | H72: 13:04:00 | I72: 0:56 | J72: 0:59
A73: GREEN ZONE START | D73: 40 | E73: 121.5 | F73: 13:02 - 13:05 | G73: 13:02:00 | H73: 13:05:00 | I73: 0:57 | J73: 1:00
A74: END | D74: 40.2 | E74: 121.3 | F74: 13:02 - 13:05 | G74: 13:02:00 | H74: 13:05:00 | I74: 0:57 | J74: 1:00
C75: VELEBOŘ | D75: 40.6 | E75: 120.9 | F75: 13:03 - 13:05 | G75: 13:03:00 | H75: 13:05:00 | I75: 0:58 | J75: 1:00
B76: right | C76: route 31550 crossroad | D76: 41 | E76: 120.5 | F76: 13:03 - 13:06 | G76: 13:03:00 | H76: 13:06:00 | I76: 0:58 | J76: 1:01
C77: LIPINKA | D77: 42.7 | E77: 118.8 | F77: 13:06 - 13:09 | G77: 13:06:00 | H77: 13:09:00 | I77: 1:01 | J77: 1:04
B78: straight | C78: crossroad | D78: 43.3 | E78: 118.2 | F78: 13:06 - 13:09 | G78: 13:06:00 | H78: 13:09:00 | I78: 1:01 | J78: 1:04
C79: NOVÁ HRADEČNÁ | D79: 45.6 | E79: 115.9 | F79: 13:10 - 13:13 | G79: 13:10:00 | H79: 13:13:00 | I79: 1:05 | J79: 1:08
B80: railway crossing | D80: 45.8 | E80: 115.7 | F80: 13:10 - 13:13 | G80: 13:10:00 | H80: 13:13:00 | I80: 1:05 | J80: 1:08
B81: left | C81: route 31550 crossroad | D81: 46 | E81: 115.5 | F81: 13:10 - 13:14 | G81: 13:10:00 | H81: 13:14:00 | I81: 1:05 | J81: 1:09
B82: straight | C82: route 44412 crossroad | D82: 48 | E82: 113.5 | F82: 13:13 - 13:17 | G82: 13:13:00 | H82: 13:17:00 | I82: 1:08 | J82: 1:12
C83: DOLNÍ LIBINA | D83: 49.9 | E83: 111.6 | F83: =TEXT(G83,"h:mm")&" - "&TEXT(H83,"h:mm") -> 13:16 - 13:19 | G83: =$C$7+I83 -> 13:16:00 | H83: 13:19:00 | I83: =TEXT(D83/$C$10/24,"h:mm") -> 1:11 | J83: =TEXT(D83/$C$11/24,"h:mm") -> 1:14
B84: right | C84: route 446 crossroad | D84: 50.3 | E84: 111.2 | F84: =TEXT(G84,"h:mm")&" - "&TEXT(H84,"h:mm") -> 13:16 - 13:20 | G84: 13:16:00 | H84: 13:20:00 | I84: =TEXT(D84/$C$10/24,"h:mm") -> 1:11 | J84: =TEXT(D84/$C$11/24,"h:mm") -> 1:15
B85: left | C85: route 370 crossroad | D85: 50.7 | E85: 110.8 | F85: =TEXT(G85,"h:mm")&" - "&TEXT(H85,"h:mm") -> 13:17 - 13:21 | G85: 13:17:00 | H85: 13:21:00 | I85: =TEXT(D85/$C$10/24,"h:mm") -> 1:12 | J85: =TEXT(D85/$C$11/24,"h:mm") -> 1:16
B86: straight | C86: crossroad | D86: 52.3 | E86: 109.2 | F86: 13:19 - 13:23 | G86: 13:19:00 | H86: 13:23:00 | I86: 1:14 | J86: 1:18
B87: right | C87: crossroad | D87: 53.1 | E87: 108.4 | F87: 13:20 - 13:24 | G87: 13:20:00 | H87: 13:24:00 | I87: 1:15 | J87: 1:19
B88: left | C88: crossroad | D88: 54 | E88: 107.5 | F88: 13:22 - 13:26 | G88: 13:22:00 | H88: 13:26:00 | I88: 1:17 | J88: 1:21
B89: left | C89: crossroad | D89: 54.8 | E89: 106.7 | F89: 13:23 - 13:27 | G89: 13:23:00 | H89: 13:27:00 | I89: 1:18 | J89: 1:22
B90: left | C90: crossorad | D90: 57.3 | E90: =$D$153-D90 -> 104.2 | F90: 13:26 - 13:30 | G90: 13:26:00 | H90: 13:30:00 | I90: 1:21 | J90: 1:25
B91: straight | D91: 58.4 | E91: 103.1 | F91: 13:28 - 13:32 | G91: 13:28:00 | H91: 13:32:00 | I91: 1:23 | J91: 1:27
B92: straight | C92: crossroad | D92: 60.4 | E92: 101.1 | F92: 13:31 - 13:35 | G92: 13:31:00 | H92: 13:35:00 | I92: 1:26 | J92: 1:30
C93: TVRDKOV | D93: 60.7 | E93: 100.8 | F93: 13:31 - 13:36 | G93: 13:31:00 | H93: 13:36:00 | I93: 1:26 | J93: 1:31
B94: straight | C94: crossroad | D94: 61 | E94: 100.5 | F94: 13:32 - 13:36 | G94: 13:32:00 | H94: 13:36:00 | I94: 1:27 | J94: 1:31
C95: HORNÍ MĚSTO | D95: 63.4 | E95: 98.1 | F95: 13:35 - 13:40 | G95: 13:35:00 | H95: 13:40:00 | I95: 1:30 | J95: 1:35
B96: straight | D96: 64.1 | E96: 97.4 | F96: 13:36 - 13:41 | G96: 13:36:00 | H96: 13:41:00 | I96: 1:31 | J96: 1:36
C97: SKÁLY | D97: 64.7 | E97: 96.8 | F97: 13:37 - 13:42 | G97: 13:37:00 | H97: 13:42:00 | I97: 1:32 | J97: 1:37
B98: straight | C98: crossroad | D98: 64.9 | E98: 96.6 | F98: 13:37 - 13:42 | G98: 13:37:00 | H98: 13:42:00 | I98: 1:32 | J98: 1:37
B99: straight | C99: crossroad | D99: 65.5 | E99: 96 | F99: 13:38 - 13:43 | G99: 13:38:00 | H99: 13:43:00 | I99: 1:33 | J99: 1:38
C100: RÝMAŘOV | D100: 68.2 | E100: 93.3 | F100: 13:42 - 13:47 | G100: 13:42:00 | H100: 13:47:00 | I100: 1:37 | J100: 1:42
B101: right | C101: st. okružní | D101: 68.3 | E101: 93.2 | F101: 13:42 - 13:47 | G101: 13:42:00 | H101: 13:47:00 | I101: 1:37 | J101: 1:42
B102: straight | C102: crossroad | D102: 69.1 | E102: 92.4 | F102: 13:43 - 13:48 | G102: 13:43:00 | H102: 13:48:00 | I102: 1:38 | J102: 1:43
B103: left | C103: st. třída Hrdinů | D103: 69.7 | E103: 91.8 | F103: 13:44 - 13:49 | G103: 13:44:00 | H103: 13:49:00 | I103: 1:39 | J103: 1:44
B104: right | C104: st. Revoluční | D104: 69.8 | E104: 91.7 | F104: 13:44 - 13:49 | G104: 13:44:00 | H104: 13:49:00 | I104: 1:39 | J104: 1:44
B105: straight | C105: crossroad | D105: 70.2 | E105: 91.3 | F105: 13:45 - 13:50 | G105: 13:45:00 | H105: 13:50:00 | I105: 1:40 | J105: 1:45
B106: left | C106: st. Opavská | D106: 70.4 | E106: 91.1 | F106: 13:45 - 13:50 | G106: 13:45:00 | H106: 13:50:00 | I106: 1:40 | J106: 1:45
B107: straight | C107: crossroad | D107: 70.6 | E107: 90.9 | F107: 13:45 - 13:50 | G107: 13:45:00 | H107: 13:50:00 | I107: 1:40 | J107: 1:45
C108: JANOVICE | D108: 72 | E108: 89.5 | F108: 13:47 - 13:53 | G108: 13:47:00 | H108: 13:53:00 | I108: 1:42 | J108: 1:48
A109: FEED ZONE | D109: 73 | E109: 88.5 | F109: 13:49 - 13:54 | G109: 13:49:00 | H109: 13:54:00 | I109: 1:44 | J109: 1:49
A110: GREEN ZONE START | D110: 73 | E110: 88.5 | F110: 13:49 - 13:54 | G110: 13:49:00 | H110: 13:54:00 | I110: 1:44 | J110: 1:49
A111: END | D111: 73.2 | E111: 88.3 | F111: 13:49 - 13:54 | G111: 13:49:00 | H111: 13:54:00 | I111: 1:44 | J111: 1:49
B112: straight | C112: st. Opavská | D112: 72.6 | E112: =$D$153-D112 -> 88.9 | F112: 13:48 - 13:53 | G112: 13:48:00 | H112: 13:53:00 | I112: 1:43 | J112: 1:48
C113: STARÁ VES | D113: 73.4 | E113: 88.1 | F113: 13:49 - 13:55 | G113: 13:49:00 | H113: 13:55:00 | I113: 1:44 | J113: 1:50
B114: straight | C114: st. Potočná | D114: 74.2 | E114: 87.3 | F114: 13:51 - 13:56 | G114: 13:51:00 | H114: 13:56:00 | I114: 1:46 | J114: 1:51
B115: straight | C115: crossroad | D115: 76.9 | E115: 84.6 | F115: 13:54 - 14:00 | G115: 13:54:00 | H115: 14:00:00 | I115: 1:49 | J115: 1:55
C116: KLEPÁČOV | D116: 85.8 | E116: 75.7 | F116: 14:07 - 14:13 | G116: 14:07:00 | H116: 14:13:00 | I116: 2:02 | J116: 2:08
B117: straight | C117: crossorad | D117: 91.4 | E117: 70.1 | F117: 14:15 - 14:22 | G117: 14:15:00 | H117: 14:22:00 | I117: 2:10 | J117: 2:17
C118: OTÍN | D118: 92.9 | E118: 68.6 | F118: 14:17 - 14:24 | G118: 14:17:00 | H118: 14:24:00 | I118: 2:12 | J118: 2:19
B119: straight | C119: crossroad | D119: 93.3 | E119: 68.2 | F119: 14:18 - 14:24 | G119: 14:18:00 | H119: 14:24:00 | I119: 2:13 | J119: 2:19
B120: right | C120: SOBOTÍN crossroad | D120: 95.5 | E120: 66 | F120: 14:21 - 14:28 | G120: 14:21:00 | H120: 14:28:00 | I120: 2:16 | J120: 2:23
B121: left | C121: route 4502 crossroad | D121: 95.6 | E121: 65.9 | F121: 14:21 - 14:28 | G121: 14:21:00 | H121: 14:28:00 | I121: 2:16 | J121: 2:23
B122: left | C122: crossroad | D122: 96.4 | E122: 65.1 | F122: 14:22 - 14:29 | G122: 14:22:00 | H122: 14:29:00 | I122: 2:17 | J122: 2:24
B123: straight | C123: crossroad | D123: 97.6 | E123: =$D$153-D123 -> 63.9 | F123: 14:24 - 14:31 | G123: 14:24:00 | H123: 14:31:00 | I123: 2:19 | J123: 2:26
B124: left | C124: route 4502 crossroad | D124: 98.2 | E124: 63.3 | F124: 14:25 - 14:32 | G124: 14:25:00 | H124: 14:32:00 | I124: 2:20 | J124: 2:27
C125: MARŠÍKOV | D125: 99.7 | E125: 61.8 | F125: 14:27 - 14:34 | G125: 14:27:00 | H125: 14:34:00 | I125: 2:22 | J125: 2:29
B126: left | C126: crossroad | D126: 99.8 | E126: 61.7 | F126: 14:27 - 14:34 | G126: 14:27:00 | H126: 14:34:00 | I126: 2:22 | J126: 2:29
B127: straight | C127: crossorad | D127: 100.1 | E127: 61.4 | F127: 14:28 - 14:35 | G127: 14:28:00 | H127: 14:35:00 | I127: 2:23 | J127: 2:30
B128: straight | C128: crossroad | D128: 100.3 | E128: 61.2 | F128: 14:28 - 14:35 | G128: 14:28:00 | H128: 14:35:00 | I128: 2:23 | J128: 2:30
B129: right | C129: route 4502 crossroad | D129: 100.9 | E129: 60.6 | F129: 14:29 - 14:36 | G129: 14:29:00 | H129: 14:36:00 | I129: 2:24 | J129: 2:31
C130: FILIPOVÁ | D130: 102.8 | E130: 58.7 | F130: 14:31 - 14:39 | G130: 14:31:00 | H130: 14:39:00 | I130: 2:26 | J130: 2:34
B131: straight | C131: route 44 crossroad | D131: 103.3 | E131: 58.2 | F131: 14:32 - 14:39 | G131: 14:32:00 | H131: 14:39:00 | I131: 2:27 | J131: 2:34
C132: LOUČNÁ NAD DESNOU | D132: 104.3 | E132: 57.2 | F132: 14:34 - 14:41 | G132: 14:34:00 | H132: 14:41:00 | I132: 2:29 | J132: 2:36
A133: SPRINT | B133: Loučná n. Desnou | D133: 104.8 | E133: 56.7 | F133: 14:34 - 14:42 | G133: 14:34:00 | H133: 14:42:00 | I133: 2:29 | J133: 2:37
B134: right | C134: crossroad | D134: 105.5 | E134: 56 | F134: 14:35 - 14:43 | G134: 14:35:00 | H134: 14:43:00 | I134: 2:30 | J134: 2:38
A135: GREEN ZONE START | D135: 105.8 | E135: 55.7 | F135: 14:36 - 14:43 | G135: 14:36:00 | H135: 14:43:00 | I135: 2:31 | J135: 2:38
A136: END | D136: 106 | E136: 55.5 | F136: 14:36 - 14:44 | G136: 14:36:00 | H136: 14:44:00 | I136: 2:31 | J136: 2:39
A137: GPM 1st Cat | B137: 1175 m.n.m. | C137: shelter | D137: 115.7 | E137: 45.8 | F137: 14:50 - 14:58 | G137: 14:50:00 | H137: 14:58:00 | I137: 2:45 | J137: 2:53
B138: left | C138: crossroad | D138: 115.7 | E138: 45.8 | F138: 14:50 - 14:58 | G138: 14:50:00 | H138: 14:58:00 | I138: 2:45 | J138: 2:53
B139: left | C139: crossroad | D139: 120 | E139: 41.5 | F139: 14:56 - 15:05 | G139: 14:56:00 | H139: 15:05:00 | I139: 2:51 | J139: 3:00
B140: left | C140: route 44 crossroad | D140: 126.6 | E140: 34.9 | F140: 15:05 - 15:14 | G140: 15:05:00 | H140: 15:14:00 | I140: 3:00 | J140: 3:09
C141: KOUTY NAD DESNOU | D141: 127.5 | E141: 34 | F141: 15:07 - 15:16 | G141: 15:07:00 | H141: 15:16:00 | I141: 3:02 | J141: 3:11
C142: railway crossing | D142: 129.3 | E142: 32.2 | F142: 15:09 - 15:18 | G142: 15:09:00 | H142: 15:18:00 | I142: 3:04 | J142: 3:13
C143: REJHOTICE | D143: 130.6 | E143: 30.9 | F143: 15:11 - 15:20 | G143: 15:11:00 | H143: 15:20:00 | I143: 3:06 | J143: 3:15
B144: straight | C144: crossroad | D144: 130.8 | E144: 30.7 | F144: 15:11 - 15:21 | G144: 15:11:00 | H144: 15:21:00 | I144: 3:06 | J144: 3:16
B145: left | C145: route 44 | D145: 131.8 | E145: 29.7 | F145: 15:13 - 15:22 | G145: 15:13:00 | H145: 15:22:00 | I145: 3:08 | J145: 3:17
B146: left | C146: crossroad | D146: 132.4 | E146: 29.1 | F146: 15:14 - 15:23 | G146: 15:14:00 | H146: 15:23:00 | I146: 3:09 | J146: 3:18
A147: GREEN ZONE START | D147: 132.7 | E147: 28.8 | F147: 15:14 - 15:24 | G147: 15:14:00 | H147: 15:24:00 | I147: 3:09 | J147: 3:19
A148: END
A149: GPM 1st Cat | B149: 1175 m.n.m. | C149: shelter | D149: 142.6 | E149: =$D$153-D149 -> 18.9 | F149: 15:28 - 15:38 | G149: 15:28:00 | H149: 15:38:00 | I149: 3:23 | J149: 3:33
B150: left | C150: crossroad | D150: 142.6 | E150: =$D$153-D150 -> 18.9 | F150: 15:28 - 15:38 | G150: 15:28:00 | H150: 15:38:00 | I150: 3:23 | J150: 3:33
B151: left | C151: crossroad | D151: 147 | E151: =$D$153-D151 -> 14.5 | F151: 15:35 - 15:45 | G151: 15:35:00 | H151: 15:45:00 | I151: 3:30 | J151: 3:40
B152: right | C152: route 44 crossroad | D152: 153.4 | E152: =$D$153-D152 -> 8.1 | F152: 15:44 - 15:55 | G152: 15:44:00 | H152: 15:55:00 | I152: 3:39 | J152: 3:50
A153: FINISH | B153: 1010m n. m. | C153: Červenohorské sedlo | D153: 161.5 | E153: =D154-D154 -> 0 | F153: 15:55 - 16:07 | G153: 15:55:00 | H153: 16:07:00 | I153: 3:50 | J153: 4:02

Sheet 04-Šumperk_Šternberk
A1: Stage timetable
A3: 4th stage Šumperk - Šternberk, 30.7. 2023
A5: Stage start time
A6: Start | C6: 11:00:00
A7: KM0 hh:mm | C7: 11:05:00
A9: Average speed (km/h)
A10: a | C10: 40
A11: b | C11: 38
B13: remark | C13: place | D13: kilometer | E13: distance to finish | F13: timetable | G13: absolute time A | H13: absolute time B | I13: relative time A | J13: relative time B
C14: ITINERARY | D14: (km) | F14: (hh:mm - hh:mm) | G14: (hh:mm) | H14: (hh:mm) | I14: (hh:mm) | J14: (hh:mm)
A15: START | C15: Šumperk, náměstí Míru | D15: 0 | F15: 11:00:00 | G15: 11:00:00 | H15: 11:00:00 | I15: 00:00:00 | J15: 00:00:00
B16: straight | C16: st. Sadová | D16: 0.1
B17: right | C17: crossroad | D17: 0.2
B18: right | C18: crossroad | D18: 0.25
B19: left | C19: st. Žerotínova | D19: 0.3
B20: 2nd exit - straight | C20: roundabout | D20: 0.45
B21: right | C21: st. Jesenická | D21: 0.8
B22: straight | C22: roundabout | D22: 1.4
B23: right | C23: roundabout | D23: 2
B24: straight | C24: st. Langrova | D24: 3.7
B25: straight | C25: roundabout | D25: 4.3
B26: left | C26: st. Bratrušovská | D26: 4.8 | E26: =$D$187-D26 -> 171.4 | F26: =TEXT(G26,"h:mm")&" - "&TEXT(H26,"h:mm") -> 11:12 - 11:12 | G26: =$C$7+I26 -> 11:12:00 | H26: =$C$7+J26 -> 11:12:00 | I26: =TEXT(D26/$C$10/24,"h:mm") -> 0:07 | J26: =TEXT(D26/$C$11/24,"h:mm") -> 0:07
B27: KM0 | C27: st. Bratrušovská | D27: 0 | E27: =$D$187-D27 -> 176.2 | F27: =TEXT(G27,"h:mm")&" - "&TEXT(H27,"h:mm") -> 11:05 - 11:05 | G27: =$C$7+I27 -> 11:05:00 | H27: =$C$7+J27 -> 11:05:00 | I27: =TEXT(D27/$C$10/24,"h:mm") -> 0:00 | J27: =TEXT(D27/$C$11/24,"h:mm") -> 0:00
C28: BRATRUŠOV | D28: 3.6 | E28: =$D$187-D28 -> 172.6 | F28: 11:10 - 11:10 | G28: 11:10:00 | H28: 11:10:00 | I28: 0:05 | J28: 0:05
B29: straight | C29: crossroad | D29: 7 | E29: =$D$187-D29 -> 169.2 | F29: 11:15 - 11:16 | G29: 11:15:00 | H29: 11:16:00 | I29: 0:10 | J29: 0:11
C30: LUŽNÁ | D30: 7.9 | E30: =$D$187-D30 -> 168.3 | F30: 11:16 - 11:17 | G30: 11:16:00 | H30: 11:17:00 | I30: 0:11 | J30: 0:12
C31: KOPŘIVNÁ | D31: 9.7 | E31: =$D$187-D31 -> 166.5 | F31: 11:19 - 11:20 | G31: 11:19:00 | H31: 11:20:00 | I31: 0:14 | J31: 0:15
B32: straight | C32: crossroad | D32: 10 | E32: =$D$187-D32 -> 166.2 | F32: 11:20 - 11:20 | G32: 11:20:00 | H32: 11:20:00 | I32: 0:15 | J32: 0:15
C33: HANUŠOVICE | D33: 13.7 | E33: =$D$187-D33 -> 162.5 | F33: 11:25 - 11:26 | G33: 11:25:00 | H33: 11:26:00 | I33: 0:20 | J33: 0:21
B34: right | C34: crossroad | D34: 13.8 | E34: =$D$187-D34 -> 162.4 | F34: 11:25 - 11:26 | G34: 11:25:00 | H34: 11:26:00 | I34: 0:20 | J34: 0:21
B35: straight | C35: st. Hlavní | D35: 14.9 | E35: =$D$187-D35 -> 161.3 | F35: 11:27 - 11:28 | G35: 11:27:00 | H35: 11:28:00 | I35: 0:22 | J35: 0:23
B36: railway crossing | D36: 15.1 | E36: =$D$187-D36 -> 161.1 | F36: 11:27 - 11:28 | G36: 11:27:00 | H36: 11:28:00 | I36: 0:22 | J36: 0:23
B37: right | C37: st. Jesenická | D37: 15.3 | E37: =$D$187-D37 -> 160.9 | F37: 11:27 - 11:29 | G37: 11:27:00 | H37: 11:29:00 | I37: 0:22 | J37: 0:24
B38: railway crossing | D38: 16.5 | E38: =$D$187-D38 -> 159.7 | F38: 11:29 - 11:31 | G38: 11:29:00 | H38: 11:31:00 | I38: 0:24 | J38: 0:26
B39: railway crossing | D39: 17.5 | E39: =$D$187-D39 -> 158.7 | F39: 11:31 - 11:32 | G39: 11:31:00 | H39: 11:32:00 | I39: 0:26 | J39: 0:27
B40: straight | C40: crossroad | D40: 18.7 | E40: =$D$187-D40 -> 157.5 | F40: 11:33 - 11:34 | G40: 11:33:00 | H40: 11:34:00 | I40: 0:28 | J40: 0:29
B41: railway crossing | D41: 19.1 | E41: =$D$187-D41 -> 157.1 | F41: 11:33 - 11:35 | G41: 11:33:00 | H41: 11:35:00 | I41: 0:28 | J41: 0:30
C42: JINDŘICHOV | D42: 19.2 | E42: =$D$187-D42 -> 157 | F42: 11:33 - 11:35 | G42: 11:33:00 | H42: 11:35:00 | I42: 0:28 | J42: 0:30
B43: straight | C43: route 369 crossroad | D43: 19.9 | E43: =$D$187-D43 -> 156.3 | F43: 11:34 - 11:36 | G43: 11:34:00 | H43: 11:36:00 | I43: 0:29 | J43: 0:31
B44: straight | C44: crossroad | D44: 20.6 | E44: =$D$187-D44 -> 155.6 | F44: 11:35 - 11:37 | G44: 11:35:00 | H44: 11:37:00 | I44: 0:30 | J44: 0:32
C45: NOVÉ LOSINY | D45: 22.2 | E45: =$D$187-D45 -> 154 | F45: 11:38 - 11:40 | G45: 11:38:00 | H45: 11:40:00 | I45: 0:33 | J45: 0:35
B46: right | C46: route 3696 crossroad | D46: 22.8 | E46: =$D$187-D46 -> 153.4 | F46: 11:39 - 11:41 | G46: 11:39:00 | H46: 11:41:00 | I46: 0:34 | J46: 0:36
A47: GPM 2nd Cat | B47: 765 m.n.m. | C47: Přemyslovské sedlo | D47: 27.5 | E47: =$D$187-D47 -> 148.7 | F47: =TEXT(G47,"h:mm")&" - "&TEXT(H47,"h:mm") -> 11:46 - 11:48 | G47: =$C$7+I47 -> 11:46:00 | H47: =$C$7+J47 -> 11:48:00 | I47: =TEXT(D47/$C$10/24,"h:mm") -> 0:41 | J47: =TEXT(D47/$C$11/24,"h:mm") -> 0:43
A48: KM30 Patník | D48: 30 | E48: =$D$187-D48 -> 146.2 | F48: 11:50 - 11:52 | G48: 11:50:00 | H48: 11:52:00 | I48: 0:45 | J48: 0:47
C49: PŘEMYSLOV | D49: 28.7 | E49: =$D$187-D49 -> 147.5 | F49: 11:48 - 11:50 | G49: 11:48:00 | H49: 11:50:00 | I49: 0:43 | J49: 0:45
C50: REJHOTICE | D50: 31.5 | E50: =$D$187-D50 -> 144.7 | F50: 11:52 - 11:54 | G50: 11:52:00 | H50: 11:54:00 | I50: 0:47 | J50: 0:49
B51: railway crossing | D51: 31.7 | E51: =$D$187-D51 -> 144.5 | F51: 11:52 - 11:55 | G51: 11:52:00 | H51: 11:55:00 | I51: 0:47 | J51: 0:50
B52: left | C52: route 44 crossroad | D52: 31.8 | E52: =$D$187-D52 -> 144.4 | F52: 11:52 - 11:55 | G52: 11:52:00 | H52: 11:55:00 | I52: 0:47 | J52: 0:50
C53: KOUTY NAD DESNOU | D53: 33.2 | E53: =$D$187-D53 -> 143 | F53: 11:54 - 11:57 | G53: 11:54:00 | H53: 11:57:00 | I53: 0:49 | J53: 0:52
B54: railway crossing | D54: 33.4 | E54: =$D$187-D54 -> 142.8 | F54: 11:55 - 11:57 | G54: 11:55:00 | H54: 11:57:00 | I54: 0:50 | J54: 0:52
B55: straight | C55: crossroad | D55: 33.8 | E55: =$D$187-D55 -> 142.4 | F55: 11:55 - 11:58 | G55: 11:55:00 | H55: 11:58:00 | I55: 0:50 | J55: 0:53
B56: right | C56: crossroad | D56: 34.6 | E56: =$D$187-D56 -> 141.6 | F56: 11:56 - 11:59 | G56: 11:56:00 | H56: 11:59:00 | I56: 0:51 | J56: 0:54
A57: GREEN ZONE START | D57: 35.1 | E57: =$D$187-D57 -> 141.1 | F57: =TEXT(G57,"h:mm")&" - "&TEXT(H57,"h:mm") -> 11:57 - 12:00 | G57: =$C$7+I57 -> 11:57:00 | H57: =$C$7+J57 -> 12:00:00 | I57: =TEXT(D57/$C$10/24,"h:mm") -> 0:52 | J57: =TEXT(D57/$C$11/24,"h:mm") -> 0:55
A58: END | D58: 35.3 | E58: =$D$187-D58 -> 140.9 | F58: 11:57 - 12:00 | G58: 11:57:00 | H58: 12:00:00 | I58: 0:52 | J58: 0:55
B59: straight | C59: crossroad | D59: 36 | E59: =$D$187-D59 -> 140.2 | F59: 11:59 - 12:01 | G59: 11:59:00 | H59: 12:01:00 | I59: 0:54 | J59: 0:56
A60: GPM 1st Cat | B60: 1 007 m. n. m. | C60: Červenohorské sedlo | D60: 43.8 | E60: =$D$187-D60 -> 132.4 | F60: 12:10 - 12:14 | G60: 12:10:00 | H60: 12:14:00 | I60: 1:05 | J60: 1:09
C61: FILIPOVICE | D61: 50 | E61: =$D$187-D61 -> 126.2 | F61: 12:20 - 12:23 | G61: 12:20:00 | H61: 12:23:00 | I61: 1:15 | J61: 1:18
C62: BĚLÁ POD PRADĚDEM | D62: 52.2 | E62: =$D$187-D62 -> 124 | F62: 12:23 - 12:27 | G62: 12:23:00 | H62: 12:27:00 | I62: 1:18 | J62: 1:22
B63: right!!! | C63: crossroad | D63: 52.6 | E63: =$D$187-D63 -> 123.6 | F63: 12:23 - 12:28 | G63: 12:23:00 | H63: 12:28:00 | I63: 1:18 | J63: 1:23
A64: GPM 2nd Cat | B64: 928 m.n.m. | C64: Vidly | D64: 60.6 | E64: =$D$187-D64 -> 115.6 | F64: 12:35 - 12:40 | G64: 12:35:00 | H64: 12:40:00 | I64: 1:30 | J64: 1:35
B65: right!!! | C65: VIDLY crossroad | D65: 63.2 | E65: =$D$187-D65 -> 113 | F65: 12:39 - 12:44 | G65: 12:39:00 | H65: 12:44:00 | I65: 1:34 | J65: 1:39
B66: straight | C66: KARLOVA STUDÁNKA crossroad | D66: 69.6 | E66: =$D$187-D66 -> 106.6 | F66: 12:49 - 12:54 | G66: 12:49:00 | H66: 12:54:00 | I66: 1:44 | J66: 1:49
B67: straight | C67: Hvězda crossroad | D67: 70.6 | E67: =$D$187-D67 -> 105.6 | F67: 12:50 - 12:56 | G67: 12:50:00 | H67: 12:56:00 | I67: 1:45 | J67: 1:51
C68: MALÁ MORÁVKA | D68: 75.2 | E68: =$D$187-D68 -> 101 | F68: 12:57 - 13:03 | G68: 12:57:00 | H68: 13:03:00 | I68: 1:52 | J68: 1:58
B69: straight | C69: crossroad | D69: 76.5 | E69: =$D$187-D69 -> 99.7 | F69: 12:59 - 13:05 | G69: 12:59:00 | H69: 13:05:00 | I69: 1:54 | J69: 2:00
B70: left | C70: route 44515 crossroad | D70: 77 | E70: =$D$187-D70 -> 99.2 | F70: 13:00 - 13:06 | G70: 13:00:00 | H70: 13:06:00 | I70: 1:55 | J70: 2:01
B71: railway crossing | D71: 79 | E71: =$D$187-D71 -> 97.2 | F71: 13:03 - 13:09 | G71: 13:03:00 | H71: 13:09:00 | I71: 1:58 | J71: 2:04
C72: RUDNÁ POD PRADĚDEM | D72: 79.5 | E72: =$D$187-D72 -> 96.7 | F72: 13:04 - 13:10 | G72: 13:04:00 | H72: 13:10:00 | I72: 1:59 | J72: 2:05
A73: FEED ZONE | D73: 80.3 | E73: =$D$187-D73 -> 95.9 | F73: =TEXT(G73,"h:mm")&" - "&TEXT(H73,"h:mm") -> 13:05 - 13:11 | G73: =$C$7+I73 -> 13:05:00 | H73: =$C$7+J73 -> 13:11:00 | I73: =TEXT(D73/$C$10/24,"h:mm") -> 2:00 | J73: =TEXT(D73/$C$11/24,"h:mm") -> 2:06
A74: GREEN ZONE START | D74: 80.3 | E74: =$D$187-D74 -> 95.9 | F74: 13:05 - 13:11 | G74: 13:05:00 | H74: 13:11:00 | I74: 2:00 | J74: 2:06
A75: END | D75: 80.5 | E75: =$D$187-D75 -> 95.7 | F75: 13:05 - 13:12 | G75: 13:05:00 | H75: 13:12:00 | I75: 2:00 | J75: 2:07
C76: STARÁ RUDNÁ | D76: 81.3 | E76: =$D$187-D76 -> 94.9 | F76: 13:06 - 13:13 | G76: 13:06:00 | H76: 13:13:00 | I76: 2:01 | J76: 2:08
B77: right | C77: route 450 | D77: 83.4 | E77: =$D$187-D77 -> 92.8 | F77: 13:10 - 13:16 | G77: 13:10:00 | H77: 13:16:00 | I77: 2:05 | J77: 2:11
C78: NOVÁ VÉSKA | D78: 84.9 | E78: =$D$187-D78 -> 91.3 | F78: 13:12 - 13:19 | G78: 13:12:00 | H78: 13:19:00 | I78: 2:07 | J78: 2:14
C79: STARÉ MĚSTO | D79: 86.6 | E79: =$D$187-D79 -> 89.6 | F79: 13:14 - 13:21 | G79: 13:14:00 | H79: 13:21:00 | I79: 2:09 | J79: 2:16
B80: straight | C80: crossroad | D80: 87.4 | E80: =$D$187-D80 -> 88.8 | F80: 13:16 - 13:23 | G80: 13:16:00 | H80: 13:23:00 | I80: 2:11 | J80: 2:18
C81: BRUNTÁL | D81: 89.1 | E81: =$D$187-D81 -> 87.1 | F81: 13:18 - 13:25 | G81: 13:18:00 | H81: 13:25:00 | I81: 2:13 | J81: 2:20
B82: left | C82: st. Jesenická | D82: 89.7 | E82: =$D$187-D82 -> 86.5 | F82: 13:19 - 13:26 | G82: 13:19:00 | H82: 13:26:00 | I82: 2:14 | J82: 2:21
B83: right | C83: st. Ruská | D83: 90.2 | E83: =$D$187-D83 -> 86 | F83: 13:20 - 13:27 | G83: 13:20:00 | H83: 13:27:00 | I83: 2:15 | J83: 2:22
A84: SPRINT | B84: Evangelic church | D84: 90.9 | E84: =$D$187-D84 -> 85.3 | F84: 13:21 - 13:28 | G84: 13:21:00 | H84: 13:28:00 | I84: 2:16 | J84: 2:23
B85: left | C85: st. třída Práce | D85: 91.2 | E85: =$D$187-D85 -> 85 | F85: 13:21 - 13:29 | G85: 13:21:00 | H85: 13:29:00 | I85: 2:16 | J85: 2:24
B86: railway crossing | D86: 91.8 | E86: =$D$187-D86 -> 84.4 | F86: 13:22 - 13:29 | G86: 13:22:00 | H86: 13:29:00 | I86: 2:17 | J86: 2:24
B87: straight | C87: crossroad | D87: 94.4 | E87: =$D$187-D87 -> 81.8 | F87: 13:26 - 13:34 | G87: 13:26:00 | H87: 13:34:00 | I87: 2:21 | J87: 2:29
B88: straight | C88: crossroad | D88: 95.8 | E88: =$D$187-D88 -> 80.4 | F88: 13:28 - 13:36 | G88: 13:28:00 | H88: 13:36:00 | I88: 2:23 | J88: 2:31
B89: straight | C89: RAZOVÁ crossroad | D89: 99.3 | E89: =$D$187-D89 -> 76.9 | F89: 13:33 - 13:41 | G89: 13:33:00 | H89: 13:41:00 | I89: 2:28 | J89: 2:36
B90: straight | C90: LESKOVEC NAD MORAVICÍ | D90: 103.6 | E90: =$D$187-D90 -> 72.6 | F90: 13:40 - 13:48 | G90: 13:40:00 | H90: 13:48:00 | I90: 2:35 | J90: 2:43
B91: straight | C91: crossroad | D91: 103.7 | E91: =$D$187-D91 -> 72.5 | F91: 13:40 - 13:48 | G91: 13:40:00 | H91: 13:48:00 | I91: 2:35 | J91: 2:43
B92: left | C92: route 45921 crossroad | D92: 105.6 | E92: =$D$187-D92 -> 70.6 | F92: 13:43 - 13:51 | G92: 13:43:00 | H92: 13:51:00 | I92: 2:38 | J92: 2:46
C93: BOHDANOVICE | D93: 108 | E93: =$D$187-D93 -> 68.2 | F93: 13:47 - 13:55 | G93: 13:47:00 | H93: 13:55:00 | I93: 2:42 | J93: 2:50
B94: right | C94: route 442 | D94: 108.7 | E94: =$D$187-D94 -> 67.5 | F94: 13:48 - 13:56 | G94: 13:48:00 | H94: 13:56:00 | I94: 2:43 | J94: 2:51
C95: HOŘEJŠÍ KUNČICE | D95: 109.8 | E95: =$D$187-D95 -> 66.4 | F95: 13:49 - 13:58 | G95: 13:49:00 | H95: 13:58:00 | I95: 2:44 | J95: 2:53
B96: right | C96: route 46 crossroad | D96: 110.2 | E96: =$D$187-D96 -> 66 | F96: 13:50 - 13:59 | G96: 13:50:00 | H96: 13:59:00 | I96: 2:45 | J96: 2:54
C97: SLEZSKÁ HARTA | D97: 112.8 | E97: =$D$187-D97 -> 63.4 | F97: 13:54 - 14:03 | G97: 13:54:00 | H97: 14:03:00 | I97: 2:49 | J97: 2:58
B98: left | C98: crossroad | D98: 113.3 | E98: =$D$187-D98 -> 62.9 | F98: 13:54 - 14:03 | G98: 13:54:00 | H98: 14:03:00 | I98: 2:49 | J98: 2:58
C99: BÍLČICE | D99: 116 | E99: =$D$187-D99 -> 60.2 | F99: 13:59 - 14:08 | G99: 13:59:00 | H99: 14:08:00 | I99: 2:54 | J99: 3:03
B100: straight | C100: crossroad | D100: 116.8 | E100: =$D$187-D100 -> 59.4 | F100: 14:00 - 14:09 | G100: 14:00:00 | H100: 14:09:00 | I100: 2:55 | J100: 3:04
C101: MÁJŮVKA | D101: 118.2 | E101: =$D$187-D101 -> 58 | F101: 14:02 - 14:11 | G101: 14:02:00 | H101: 14:11:00 | I101: 2:57 | J101: 3:06
A102: GREEN ZONE START | D102: 119.8 | E102: =$D$187-D102 -> 56.4 | F102: =TEXT(G102,"h:mm")&" - "&TEXT(H102,"h:mm") -> 14:04 - 14:14 | G102: =$C$7+I102 -> 14:04:00 | H102: =$C$7+J102 -> 14:14:00 | I102: =TEXT(D102/$C$10/24,"h:mm") -> 2:59 | J102: =TEXT(D102/$C$11/24,"h:mm") -> 3:09
A103: END | D103: 120 | E103: =$D$187-D103 -> 56.2 | F103: 14:05 - 14:14 | G103: 14:05:00 | H103: 14:14:00 | I103: 3:00 | J103: 3:09
C104: DVORCE | D104: 120.4 | E104: =$D$187-D104 -> 55.8 | F104: 14:05 - 14:15 | G104: 14:05:00 | H104: 14:15:00 | I104: 3:00 | J104: 3:10
B105: straight | C105: st. Opavská crossroad | D105: 120.9 | E105: =$D$187-D105 -> 55.3 | F105: 14:06 - 14:15 | G105: 14:06:00 | H105: 14:15:00 | I105: 3:01 | J105: 3:10
B106: right | C106: st. Olomoucká | D106: 121.6 | E106: =$D$187-D106 -> 54.6 | F106: 14:07 - 14:17 | G106: 14:07:00 | H106: 14:17:00 | I106: 3:02 | J106: 3:12
B107: straight | C107: crossroad | D107: 123.1 | E107: =$D$187-D107 -> 53.1 | F107: 14:09 - 14:19 | G107: 14:09:00 | H107: 14:19:00 | I107: 3:04 | J107: 3:14
B108: straight | C108: crossroad | D108: 123.2 | E108: =$D$187-D108 -> 53 | F108: 14:09 - 14:19 | G108: 14:09:00 | H108: 14:19:00 | I108: 3:04 | J108: 3:14
C109: MORAVSKÝ BEROUN | D109: 129 | E109: =$D$187-D109 -> 47.2 | F109: 14:18 - 14:28 | G109: 14:18:00 | H109: 14:28:00 | I109: 3:13 | J109: 3:23
B110: straight | C110: st. Opavská | D110: 129.7 | E110: =$D$187-D110 -> 46.5 | F110: 14:19 - 14:29 | G110: 14:19:00 | H110: 14:29:00 | I110: 3:14 | J110: 3:24
B111: left | C111: st. Opavská | D111: 130.3 | E111: =$D$187-D111 -> 45.9 | F111: 14:20 - 14:30 | G111: 14:20:00 | H111: 14:30:00 | I111: 3:15 | J111: 3:25
B112: right | C112: st. Masarykova | D112: 130.4 | E112: =$D$187-D112 -> 45.8 | F112: 14:20 - 14:30 | G112: 14:20:00 | H112: 14:30:00 | I112: 3:15 | J112: 3:25
C113: ONDRÁŠOV | D113: 131.5 | E113: =$D$187-D113 -> 44.7 | F113: 14:22 - 14:32 | G113: 14:22:00 | H113: 14:32:00 | I113: 3:17 | J113: 3:27
B114: railway crossing | D114: 131.5 | E114: =$D$187-D114 -> 44.7 | F114: 14:22 - 14:32 | G114: 14:22:00 | H114: 14:32:00 | I114: 3:17 | J114: 3:27
B115: straight | C115: crossroad | D115: 131.7 | E115: =$D$187-D115 -> 44.5 | F115: 14:22 - 14:32 | G115: 14:22:00 | H115: 14:32:00 | I115: 3:17 | J115: 3:27
B116: straight | C116: crossroad | D116: 134.6 | E116: =$D$187-D116 -> 41.6 | F116: 14:26 - 14:37 | G116: 14:26:00 | H116: 14:37:00 | I116: 3:21 | J116: 3:32
C117: HORNÍ LODĚNICE | D117: 135.6 | E117: =$D$187-D117 -> 40.6 | F117: 14:28 - 14:39 | G117: 14:28:00 | H117: 14:39:00 | I117: 3:23 | J117: 3:34
B118: straight | C118: crossroad | D118: 136 | E118: =$D$187-D118 -> 40.2 | F118: 14:29 - 14:39 | G118: 14:29:00 | H118: 14:39:00 | I118: 3:24 | J118: 3:34
C119: NOVÉ DVORCE | D119: 137.7 | E119: =$D$187-D119 -> 38.5 | F119: 14:31 - 14:42 | G119: 14:31:00 | H119: 14:42:00 | I119: 3:26 | J119: 3:37
C120: LIPINA | D120: 141.4 | E120: =$D$187-D120 -> 34.8 | F120: 14:37 - 14:48 | G120: 14:37:00 | H120: 14:48:00 | I120: 3:32 | J120: 3:43
B121: right | C121: route 44423 crossroad | D121: 141.7 | E121: =$D$187-D121 -> 34.5 | F121: 14:37 - 14:48 | G121: 14:37:00 | H121: 14:48:00 | I121: 3:32 | J121: 3:43
C122: ŠTENBERK | D122: 144.7 | E122: =$D$187-D122 -> 31.5 | F122: 14:42 - 14:53 | G122: 14:42:00 | H122: 14:53:00 | I122: 3:37 | J122: 3:48
B123: left | C123: route 44423 crossroad | D123: 144.9 | E123: =$D$187-D123 -> 31.3 | F123: 14:42 - 14:53 | G123: 14:42:00 | H123: 14:53:00 | I123: 3:37 | J123: 3:48
B124: right | C124: st. Svatoplukova | D124: 147 | E124: =$D$187-D124 -> 29.2 | F124: 14:45 - 14:57 | G124: 14:45:00 | H124: 14:57:00 | I124: 3:40 | J124: 3:52
B125: right | C125: st. Olomoucká | D125: 147.5 | E125: =$D$187-D125 -> 28.7 | F125: 14:46 - 14:57 | G125: 14:46:00 | H125: 14:57:00 | I125: 3:41 | J125: 3:52
B126: right | C126: st. Čechova | D126: 147.8 | E126: =$D$187-D126 -> 28.4 | F126: 14:46 - 14:58 | G126: 14:46:00 | H126: 14:58:00 | I126: 3:41 | J126: 3:53
B127: left | C127: Hlavní náměstí | D127: 147.9 | E127: =$D$187-D127 -> 28.3 | F127: 14:46 - 14:58 | G127: 14:46:00 | H127: 14:58:00 | I127: 3:41 | J127: 3:53
A128: 1st ROUND | B128: pass of the finish line | C128: st. Radniční | D128: 148.1 | E128: =$D$187-D128 -> 28.1 | F128: 14:47 - 14:58 | G128: 14:47:00 | H128: 14:58:00 | I128: 3:42 | J128: 3:53
B129: right | C129: st. Horní náměstí | D129: 148.1 | E129: =$D$187-D129 -> 28.1 | F129: 14:47 - 14:58 | G129: 14:47:00 | H129: 14:58:00 | I129: =TEXT(D129/$C$10/24,"h:mm") -> 3:42 | J129: =TEXT(D129/$C$11/24,"h:mm") -> 3:53
B130: left | C130: crossroad | D130: 148.2 | E130: =$D$187-D130 -> 28 | F130: 14:47 - 14:59 | G130: 14:47:00 | H130: 14:59:00 | I130: 3:42 | J130: 3:54
B131: left | C131: crossroad | D131: 148.2 | E131: =$D$187-D131 -> 28 | F131: 14:47 - 14:59 | G131: 14:47:00 | H131: 14:59:00 | I131: 3:42 | J131: 3:54
B132: left | C132: st. Dvorská | D132: 148.3 | E132: =$D$187-D132 -> 27.9 | F132: 14:47 - 14:59 | G132: 14:47:00 | H132: 14:59:00 | I132: 3:42 | J132: 3:54
B133: right!!! | C133: st. Hvězdné údolí | D133: 148.6 | E133: =$D$187-D133 -> 27.6 | F133: 14:47 - 14:59 | G133: 14:47:00 | H133: 14:59:00 | I133: 3:42 | J133: 3:54
A134: GREEN ZONE START | D134: 149.2
A135: END | D135: 149.6
B136: right | C136: st. Světlov | D136: 149.9 | E136: =$D$187-D136 -> 26.3 | F136: 14:49 - 15:01 | G136: 14:49:00 | H136: 15:01:00 | I136: 3:44 | J136: 3:56
B137: left | C137: crossroad | D137: 150.9 | E137: =$D$187-D137 -> 25.3 | F137: 14:51 - 15:03 | G137: 14:51:00 | H137: 15:03:00 | I137: 3:46 | J137: 3:58
B138: left | C138: st. Na Valech | D138: 151.1 | E138: =$D$187-D138 -> 25.1 | F138: 14:51 - 15:03 | G138: 14:51:00 | H138: 15:03:00 | I138: 3:46 | J138: 3:58
A139: GPM 2nd Cat | B139: 370 m.n.m. | D139: 151.9 | E139: =$D$187-D139 -> 24.3 | F139: 14:52 - 15:04 | G139: 14:52:00 | H139: 15:04:00 | I139: 3:47 | J139: 3:59
B140: right | C140: route 44423 crossroad | D140: 151.9 | E140: =$D$187-D140 -> 24.3 | F140: 14:52 - 15:04 | G140: 14:52:00 | H140: 15:04:00 | I140: 3:47 | J140: 3:59
B141: right | C141: st. Svatoplukova | D141: 154 | E141: =$D$187-D141 -> 22.2 | F141: 14:56 - 15:08 | G141: 14:56:00 | H141: 15:08:00 | I141: 3:51 | J141: 4:03
B142: right | C142: st. Olomoucká | D142: 154.5 | E142: =$D$187-D142 -> 21.7 | F142: 14:56 - 15:08 | G142: 14:56:00 | H142: 15:08:00 | I142: 3:51 | J142: 4:03
B143: right | C143: st. Čechova | D143: 154.8 | E143: =$D$187-D143 -> 21.4 | F143: 14:57 - 15:09 | G143: 14:57:00 | H143: 15:09:00 | I143: 3:52 | J143: 4:04
B144: left | C144: Hlavní náměstí | D144: 154.9 | E144: =$D$187-D144 -> 21.3 | F144: 14:57 - 15:09 | G144: 14:57:00 | H144: 15:09:00 | I144: 3:52 | J144: 4:04
A145: 2nd ROUND | B145: pass of the finish line | C145: st. Radniční | D145: 155.2 | E145: =$D$187-D145 -> 21 | F145: 14:57 - 15:10 | G145: 14:57:00 | H145: 15:10:00 | I145: 3:52 | J145: 4:05
B146: right | C146: st. Horní náměstí | D146: 155.2 | E146: =$D$187-D146 -> 21 | F146: 14:57 - 15:10 | G146: 14:57:00 | H146: 15:10:00 | I146: 3:52 | J146: 4:05
B147: left | C147: crossroad | D147: 155.2 | E147: =$D$187-D147 -> 21 | F147: 14:57 - 15:10 | G147: 14:57:00 | H147: 15:10:00 | I147: 3:52 | J147: 4:05
B148: left | C148: crossroad | D148: 155.3 | E148: =$D$187-D148 -> 20.9 | F148: 14:57 - 15:10 | G148: 14:57:00 | H148: 15:10:00 | I148: 3:52 | J148: 4:05
B149: left | C149: st. Dvorská | D149: 155.3 | E149: =$D$187-D149 -> 20.9 | F149: 14:57 - 15:10 | G149: 14:57:00 | H149: 15:10:00 | I149: 3:52 | J149: 4:05
B150: right!!! | C150: st. Hvězdné údolí | D150: 155.6 | E150: =$D$187-D150 -> 20.6 | F150: 14:58 - 15:10 | G150: 14:58:00 | H150: 15:10:00 | I150: 3:53 | J150: 4:05
B151: right | C151: st. Světlov | D151: 156.9 | E151: =$D$187-D151 -> 19.3 | F151: 15:00 - 15:12 | G151: 15:00:00 | H151: 15:12:00 | I151: 3:55 | J151: 4:07
B152: left | C152: crossroad | D152: 158 | E152: =$D$187-D152 -> 18.2 | F152: 15:02 - 15:14 | G152: 15:02:00 | H152: 15:14:00 | I152: 3:57 | J152: 4:09
B153: left | C153: st. Na Valech | D153: 158.1 | E153: =$D$187-D153 -> 18.1 | F153: 15:02 - 15:14 | G153: 15:02:00 | H153: 15:14:00 | I153: 3:57 | J153: 4:09
B154: right | C154: route 44423 crossroad | D154: 158.9 | E154: =$D$187-D154 -> 17.3 | F154: 15:03 - 15:15 | G154: 15:03:00 | H154: 15:15:00 | I154: 3:58 | J154: 4:10
B155: right | C155: st. Svatoplukova | D155: 161 | E155: =$D$187-D155 -> 15.2 | F155: 15:06 - 15:19 | G155: 15:06:00 | H155: 15:19:00 | I155: 4:01 | J155: 4:14
B156: right | C156: st. Olomoucká | D156: 161.5 | E156: =$D$187-D156 -> 14.7 | F156: 15:07 - 15:20 | G156: 15:07:00 | H156: 15:20:00 | I156: 4:02 | J156: 4:15
B157: right | C157: st. Čechova | D157: 161.8 | E157: =$D$187-D157 -> 14.4 | F157: 15:07 - 15:20 | G157: 15:07:00 | H157: 15:20:00 | I157: 4:02 | J157: 4:15
B158: left | C158: Hlavní náměstí | D158: 161.9 | E158: =$D$187-D158 -> 14.3 | F158: 15:07 - 15:20 | G158: 15:07:00 | H158: 15:20:00 | I158: 4:02 | J158: 4:15
A159: 3rd ROUND | B159: pass of the finish line | C159: st. Radniční | D159: 162 | E159: =$D$187-D159 -> 14.2 | F159: =TEXT(G159,"h:mm")&" - "&TEXT(H159,"h:mm") -> 15:08 - 15:20 | G159: =$C$7+I159 -> 15:08:00 | H159: =$C$7+J159 -> 15:20:00 | I159: =TEXT(D159/$C$10/24,"h:mm") -> 4:03 | J159: =TEXT(D159/$C$11/24,"h:mm") -> 4:15
B160: right | C160: st. Horní náměstí | D160: 162.1 | E160: =$D$187-D160 -> 14.1 | F160: 15:07 - 15:20 | G160: 15:07:00 | H160: 15:20:00 | I160: =TEXT(D157/$C$10/24,"h:mm") -> 4:02 | J160: =TEXT(D157/$C$11/24,"h:mm") -> 4:15
B161: left | C161: crossroad | D161: 162.1 | E161: =$D$187-D161 -> 14.1 | F161: 15:07 - 15:20 | G161: 15:07:00 | H161: 15:20:00 | I161: =TEXT(D158/$C$10/24,"h:mm") -> 4:02 | J161: =TEXT(D158/$C$11/24,"h:mm") -> 4:15
B162: left | C162: crossroad | D162: 162.2 | E162: =$D$187-D162 -> 14 | F162: 15:08 - 15:21 | G162: 15:08:00 | H162: 15:21:00 | I162: =TEXT(D162/$C$10/24,"h:mm") -> 4:03 | J162: =TEXT(D162/$C$11/24,"h:mm") -> 4:16
B163: left | C163: st. Dvorská | D163: 162.3 | E163: =$D$187-D163 -> 13.9 | F163: 15:08 - 15:21 | G163: 15:08:00 | H163: 15:21:00 | I163: 4:03 | J163: 4:16
B164: right!!! | C164: st. Hvězdné údolí | D164: 162.6 | E164: 13.6 | F164: 15:08 - 15:21 | G164: 15:08:00 | H164: 15:21:00 | I164: 4:03 | J164: 4:16
B165: right | C165: st. Světlov | D165: 163.9 | E165: 12.3 | F165: 15:10 - 15:23 | G165: 15:10:00 | H165: 15:23:00 | I165: 4:05 | J165: 4:18
B166: left | C166: crossroad | D166: 164.9 | E166: 11.3 | F166: 15:12 - 15:25 | G166: 15:12:00 | H166: 15:25:00 | I166: 4:07 | J166: 4:20
B167: left | C167: st. Na Valech | D167: 165 | E167: 11.2 | F167: 15:12 - 15:25 | G167: 15:12:00 | H167: 15:25:00 | I167: 4:07 | J167: 4:20
B168: right | C168: route 44423 crossroad | D168: 165.9 | E168: 10.3 | F168: 15:13 - 15:26 | G168: 15:13:00 | H168: 15:26:00 | I168: 4:08 | J168: 4:21
B169: right | C169: st. Svatoplukova | D169: 168.1 | E169: 8.1 | F169: 15:17 - 15:30 | G169: 15:17:00 | H169: 15:30:00 | I169: 4:12 | J169: 4:25
B170: right | C170: st. Olomoucká | D170: 168.5 | E170: 7.7 | F170: 15:17 - 15:31 | G170: 15:17:00 | H170: 15:31:00 | I170: 4:12 | J170: 4:26
B171: right | C171: st. Čechova | D171: 168.9 | E171: 7.3 | F171: 15:18 - 15:31 | G171: 15:18:00 | H171: 15:31:00 | I171: 4:13 | J171: 4:26
B172: left | C172: Hlavní náměstí | D172: 169 | E172: 7.2 | F172: 15:18 - 15:31 | G172: 15:18:00 | H172: 15:31:00 | I172: 4:13 | J172: 4:26
A173: 4th ROUND | B173: pass of the finish line | C173: st. Radniční | D173: 169.1 | E173: 7.1 | F173: 15:18 - 15:32 | G173: 15:18:00 | H173: 15:32:00 | I173: 4:13 | J173: 4:27
B174: right | C174: st. Horní náměstí | D174: 169.2 | E174: 7 | F174: 15:18 - 15:32 | G174: 15:18:00 | H174: 15:32:00 | I174: 4:13 | J174: 4:27
B175: left | C175: crossroad | D175: 169.2 | E175: 7 | F175: 15:18 - 15:32 | G175: 15:18:00 | H175: 15:32:00 | I175: 4:13 | J175: 4:27
B176: left | C176: crossroad | D176: 169.3 | E176: 6.9 | F176: 15:18 - 15:32 | G176: 15:18:00 | H176: 15:32:00 | I176: 4:13 | J176: 4:27
B177: left | C177: st. Dvorská | D177: 169.3 | E177: 6.9 | F177: 15:18 - 15:32 | G177: 15:18:00 | H177: 15:32:00 | I177: 4:13 | J177: 4:27
B178: right!!! | C178: st. Hvězdné údolí | D178: 169.5 | E178: 6.7 | F178: 15:19 - 15:32 | G178: 15:19:00 | H178: 15:32:00 | I178: 4:14 | J178: 4:27
B179: right | C179: st. Světlov | D179: 170.9 | E179: 5.3 | F179: 15:21 - 15:34 | G179: 15:21:00 | H179: 15:34:00 | I179: 4:16 | J179: 4:29
B180: left | C180: crossroad | D180: 172 | E180: 4.2 | F180: 15:23 - 15:36 | G180: 15:23:00 | H180: 15:36:00 | I180: 4:18 | J180: 4:31
B181: left | C181: st. Na Valech | D181: 172.1 | E181: 4.1 | F181: 15:23 - 15:36 | G181: 15:23:00 | H181: 15:36:00 | I181: 4:18 | J181: 4:31
B182: right | C182: route 44423 crossroad | D182: 173 | E182: 3.2 | F182: 15:24 - 15:38 | G182: 15:24:00 | H182: 15:38:00 | I182: 4:19 | J182: 4:33
B183: right | C183: st. Svatoplukova | D183: 175.1 | E183: 1.1 | F183: 15:27 - 15:41 | G183: 15:27:00 | H183: 15:41:00 | I183: 4:22 | J183: 4:36
B184: right | C184: st. Olomoucká | D184: 175.5 | E184: 0.7 | F184: 15:28 - 15:42 | G184: 15:28:00 | H184: 15:42:00 | I184: 4:23 | J184: 4:37
B185: right | C185: st. Čechova | D185: 175.9 | E185: 0.3 | F185: 15:28 - 15:42 | G185: 15:28:00 | H185: 15:42:00 | I185: 4:23 | J185: 4:37
B186: left | C186: Hlavní náměstí | D186: 176 | E186: 0.2 | F186: 15:29 - 15:42 | G186: 15:29:00 | H186: 15:42:00 | I186: 4:24 | J186: 4:37
A187: FINISH | C187: Šternberk, st. Radniční | D187: 176.2 | E187: 0 | F187: 15:29 - 15:43 | G187: 15:29:00 | H187: 15:43:00 | I187: 4:24 | J187: 4:38
